Cogmind - Beta 16 @@@ ROGUE MODE // 2025.12.04 @ 14:25:18 // Winter2019/RPGLIKE Player: Gallgagger Result: Escaped! Performance ------------- Evolutions (9) 4500 Regions Visited (38) 7600 Robots Destroyed (1773) 8865 Value Destroyed (100040) 100040 Prototype IDs (175) 3500 Alien Tech Used (1) 200 Bonus (98273) 98273 TOTAL SCORE: 222978 Bonus ------- Triggered High Security 3000 High Alert Combat Kills 54592 Follower Combat Kills 1407 Destroyed Unchained 1000 Network Hubs Disabled 800 Aligned with FarCom 300 Destroyed Z-Imprinter 1000 Met Zhirov 300 Met Warlord at Base 500 MAIN.C Attacked Warlord 500 Warlord Defense Kills 28372 Built Enhanced Grunts 300 Met R17 at Cetus 500 Hacked Protovariant 500 Met R17 at Research 2000 Met Warlord at Research 2000 Scanned by Researcher 500 Win 3000 Friendly Fire -2298 Cogmind --------- Core Integrity 992/1100 Matter 150/500 Energy 1146/1150 System Corruption 1% Temperature Cool (6) Movement Hovering (56) Location To Epsilon Eridani Parts ------- > --- POWER (2) -------- Vortex Chain Reactor > --- PROPULSION (6) --- Hoverbase Gravjet Array > --- UTILITY (11+2) --- 2N-1CE's Frost Array Concept Dimensional Manipulator Long-range IFF Parser Concept Weapon Articulator Experimental Target Analyzer Experimental Armor Integrity Analyzer Damper Plating (++) Graphene Brace Concept Beam Splitter Experimental Force Field > --- WEAPON (5) ------- PD Laser 8R-AWN's Boregun Gravity Flail > --- INVENTORY (5) ---- Protomatter-77 Protomatter-77 Protomatter-76 Triangulator Experimental Weapon Cycler Peak State ------------ > --- POWER ------------ Vortex Chain Reactor > --- PROPULSION ------- Hoverbase Gravjet Array > --- UTILITY ---------- 2N-1CE's Frost Array Concept Dimensional Manipulator Long-range IFF Parser Concept Weapon Articulator Experimental Target Analyzer Experimental Armor Integrity Analyzer Damper Plating Graphene Brace Concept Beam Splitter Experimental Force Field > --- WEAPON ----------- PD Laser Heavy Quantum Rifle Hypervelocity Multirail > --- INVENTORY -------- Triangulator [Rating: 237] Favorites ----------- Power Light Neutrino Core Engine Ion Engine Power Core Light Neutrino Core Reactor Vortex Chain Reactor Propulsion Hoverbase Wheel Wheel Hover Unit Hoverbase Utility Damper Plating Device Long-range IFF Parser Storage Large Matter Pod Processor Improved Armor Integrity Analyzer Hackware Ghost Barrier Protection Damper Plating Weapon 8R-AWN's Boregun Energy Gun PD Laser Energy Cannon Particle Cannon Ballistic Gun 8R-AWN's Boregun Launcher Thermoblaster Special Weapon Plasma Cutter Impact Weapon Gravity Flail Piercing Weapon Plasma Lance Build | -11 -10 -10 -10 -9 -8 -7 -7 -7 -7 -7 -7 -7 -6 -6 -6 -6 -6 -6 -5 -5 -5 -5 -5 -5 -4 -4 -4 -4 -4 -4 -4 -3 -3 -3 -2 -2 -2 -1 ------- Run | Yrd Mat Min Exi Min Mat Fac Was Fac Low Low Zio Dee Pro Fac Ext Cet Arc Hub Fac Was Fac Upp Upp War Pro Fac Was Fac Upp Upp Zhi Pro Res Tes Res Qua Frg Acc Slots Evolved 18 | 3 4 1 . . 4 . . 3 . . . . . . 1 . . . . . 1 1 . . . . . . . . . . . . . . . . Power 1 | . . . . . 1 . . . . . . . . . . . . . . . . . . . . . . . . . . . . . . . . . Propulsion 5 | 1 2 . . . . . . 1 . . . . . . . . . . . . . 1 . . . . . . . . . . . . . . . . Utility 8 | 1 2 . . . 3 . . . . . . . . . 1 . . . . . 1 . . . . . . . . . . . . . . . . . Weapon 4 | 1 . 1 . . . . . 2 . . . . . . . . . . . . . . . . . . . . . . . . . . . . . . Parts Attached 154 | 8 14 2 14 1 10 2 3 15 . 1 . 12 1 10 1 . 1 . . . 7 . 1 16 . 1 . 2 . . 1 . . 10 . 3 16 2 Power 10 | 2 . 1 3 . 1 . . . . . . 1 . . . . . . . . . . . 2 . . . . . . . . . . . . . . Engine 3 | 2 . . 1 . . . . . . . . . . . . . . . . . . . . . . . . . . . . . . . . . . . Core 3 | . . 1 1 . 1 . . . . . . . . . . . . . . . . . . . . . . . . . . . . . . . . . Reactor 4 | . . . 1 . . . . . . . . 1 . . . . . . . . . . . 2 . . . . . . . . . . . . . . Propulsion 30 | 2 4 . 2 . . 2 . 6 . . . 5 . 4 . . . . . . 1 . . 2 . . . . . . . . . . . 1 1 . Treads . | . . . . . . . . . . . . . . . . . . . . . . . . . . . . . . . . . . . . . . . Leg . | . . . . . . . . . . . . . . . . . . . . . . . . . . . . . . . . . . . . . . . Wheel 2 | 2 . . . . . . . . . . . . . . . . . . . . . . . . . . . . . . . . . . . . . . Hover 28 | . 4 . 2 . . 2 . 6 . . . 5 . 4 . . . . . . 1 . . 2 . . . . . . . . . . . 1 1 . Flight . | . . . . . . . . . . . . . . . . . . . . . . . . . . . . . . . . . . . . . . . Utility 76 | 1 5 . 7 1 8 . 1 3 . 1 . 5 . 5 1 . 1 . . . 6 . 1 6 . 1 . 2 . . 1 . . 6 . 2 12 . Device 43 | 1 . . 5 1 1 . . 2 . . . 1 . 4 1 . 1 . . . 5 . 1 2 . 1 . 2 . . 1 . . 5 . 2 7 . Storage 2 | . . . 1 . . . . . . . . 1 . . . . . . . . . . . . . . . . . . . . . . . . . . Processor 10 | . . . 1 . 1 . . 1 . 1 . . . . . . . . . . 1 . . 1 . . . . . . . . . 1 . . 3 . Hackware 1 | . . . . . . . . . . . . . . . . . . . . . . . . 1 . . . . . . . . . . . . . . Protection 20 | . 5 . . . 6 . 1 . . . . 3 . 1 . . . . . . . . . 2 . . . . . . . . . . . . 2 . Artifact . | . . . . . . . . . . . . . . . . . . . . . . . . . . . . . . . . . . . . . . . Weapon 38 | 3 5 1 2 . 1 . 2 6 . . . 1 1 1 . . . . . . . . . 6 . . . . . . . . . 4 . . 3 2 Energy Gun 8 | 1 . . . . 1 . . 2 . . . 1 . . . . . . . . . . . 1 . . . . . . . . . 1 . . 1 . Energy Cannon 6 | . 3 . . . . . 1 . . . . . . 1 . . . . . . . . . . . . . . . . . . . 1 . . . . Ballistic Gun 11 | 2 2 1 2 . . . 1 . . . . . . . . . . . . . . . . 1 . . . . . . . . . 1 . . 1 . Ballistic Cannon . | . . . . . . . . . . . . . . . . . . . . . . . . . . . . . . . . . . . . . . . Launcher 4 | . . . . . . . . 2 . . . . . . . . . . . . . . . 2 . . . . . . . . . . . . . . Special Weapon 2 | . . . . . . . . 1 . . . . 1 . . . . . . . . . . . . . . . . . . . . . . . . . Impact Weapon 4 | . . . . . . . . 1 . . . . . . . . . . . . . . . . . . . . . . . . . 1 . . . 2 Slashing Weapon . | . . . . . . . . . . . . . . . . . . . . . . . . . . . . . . . . . . . . . . . Piercing Weapon 3 | . . . . . . . . . . . . . . . . . . . . . . . . 2 . . . . . . . . . . . . 1 . Special Melee Weapon . | . . . . . . . . . . . . . . . . . . . . . . . . . . . . . . . . . . . . . . . Unidentified Prototypes 70 | . . . 7 . 1 2 2 6 . . . 8 1 7 . . . . . . 2 . . 11 . . . . . . 2 . . 9 . 3 8 1 Parts Lost 4 | . . . 3 . 1 . . . . . . . . . . . . . . . . . . . . . . . . . . . . . . . . . Power . | . . . . . . . . . . . . . . . . . . . . . . . . . . . . . . . . . . . . . . . Propulsion . | . . . . . . . . . . . . . . . . . . . . . . . . . . . . . . . . . . . . . . . Utility 4 | . . . 3 . 1 . . . . . . . . . . . . . . . . . . . . . . . . . . . . . . . . . Weapon . | . . . . . . . . . . . . . . . . . . . . . . . . . . . . . . . . . . . . . . . Highest Loss Streak 3 | . . . 3 . 1 . . . . . . . . . . . . . . . . . . . . . . . . . . . . . . . . . To Critical Strikes . | . . . . . . . . . . . . . . . . . . . . . . . . . . . . . . . . . . . . . . . Average Backups 1 | . 1 1 1 2 1 2 1 1 3 3 3 2 2 2 2 2 2 2 2 2 1 1 1 1 2 2 2 1 2 2 1 1 1 1 2 2 2 2 Power . | . . . . . . . . . . . . . . . . . . . . . . . . . . . . . . . . . . . . . . . Propulsion . | . . . . . . . . . . . . . . . . . . . . . 1 . . . . . . . . . . . . . . . . . Utility 1 | . . . . 1 1 2 1 1 2 2 2 2 2 2 2 2 2 2 2 2 . 1 1 1 2 2 2 1 2 2 1 1 1 1 1 1 1 2 Weapon . | . . . . . . . . . . . . . . . . . . . . . . . . . . . . . . . . . . . 1 1 . . Tool/Special . | . . . . . . . . . . . . . . . . . . . . . . . . . . . . . . . . . . . . . . . Unused Backups 15 | . 3 1 6 . . . . . . . . . . 3 . . . . . . . . . . . . . . . . . . . 1 . . 1 . Power 2 | . . . 2 . . . . . . . . . . . . . . . . . . . . . . . . . . . . . . . . . . . Propulsion 1 | . 1 . . . . . . . . . . . . . . . . . . . . . . . . . . . . . . . . . . . . . Utility 10 | . 1 1 4 . . . . . . . . . . 3 . . . . . . . . . . . . . . . . . . . 1 . . . . Weapon 2 | . 1 . . . . . . . . . . . . . . . . . . . . . . . . . . . . . . . . . . . 1 . Tool/Special . | . . . . . . . . . . . . . . . . . . . . . . . . . . . . . . . . . . . . . . . Average Slot Usage (%) 71 | . 88 100 90 99 92 87 77 78 73 73 73 73 72 72 74 75 75 75 75 75 68 68 69 68 65 65 65 65 65 65 65 65 65 63 65 64 62 60 Core 3 | . . 7 7 8 7 12 12 11 10 10 10 7 5 5 5 5 5 5 5 5 4 3 3 . . . . . . . . . . . . . . . Reactor 2 | . . . . . . . . . . . . 2 5 5 5 5 5 5 5 5 4 3 3 5 3 3 3 3 3 3 3 3 3 3 3 3 3 3 Hover 17 | . 23 34 33 33 26 25 25 28 26 26 26 26 26 26 25 25 25 25 25 25 11 10 11 11 11 11 11 11 11 11 11 11 11 11 11 11 8 7 Device 20 | . 11 8 13 24 20 12 12 11 10 10 5 5 7 10 12 15 15 15 15 15 23 26 28 25 19 19 19 21 26 26 28 30 30 30 30 30 27 26 Processor 4 | . . . 2 8 6 12 7 5 5 5 10 10 7 5 5 5 5 5 5 5 4 3 3 3 3 3 3 3 3 3 3 3 3 3 3 3 5 7 Protection 6 | . 14 26 11 . 11 12 7 5 5 5 5 5 5 4 5 5 5 5 5 5 6 7 4 6 11 11 11 7 3 3 3 3 3 3 3 3 3 3 Energy Gun 2 | . . . . . 2 . . 1 5 5 5 5 5 5 5 5 5 5 5 5 4 3 3 3 3 3 3 3 3 3 3 3 3 4 3 3 3 3 Ballistic Gun 8 | . 1 20 19 24 14 12 12 9 10 10 10 10 9 10 10 10 10 10 10 10 8 7 7 5 7 7 7 7 7 7 7 7 7 2 7 6 6 6 Peak Build Rating 237 | 6 19 22 62 68 84 90 106 127 127 127 127 134 133 140 141 141 141 141 141 141 186 191 193 207 203 204 204 205 205 205 205 204 205 217 215 223 237 235 Average Rating 160 | 4 12 20 32 60 72 88 96 107 127 127 127 129 131 133 139 141 140 141 141 141 172 190 192 189 203 202 204 203 205 205 204 204 204 209 215 215 228 234 On Entrance 145 | . 6 18 22 60 60 84 90 99 127 127 127 127 132 131 137 141 141 141 141 141 141 185 191 193 203 203 204 204 205 205 205 204 204 205 215 215 220 235 Avg Prop Armor Cover (%) 3 | . 6 . . . . . . 1 . . . . . . . . . . . . . . . . . . . . . . . . . . . . . . Naked Turns . | . . . . . . . . . . . . . . . . . . . . . . . . . . . . . . . . . . . . . . . Heaviest Build 133 | 10 31 32 32 27 57 57 71 81 81 81 80 85 86 86 87 87 87 87 87 87 107 107 107 129 127 128 128 128 115 115 118 118 118 128 118 133 133 123 Greatest Support 150 | 25 33 33 47 47 57 60 72 81 81 81 81 99 87 96 92 107 92 92 92 92 122 133 128 144 132 144 132 144 132 132 132 132 144 132 144 133 150 150 Greatest Overweight (x) 1 | . 1 . . . . . . 1 . . . . . . . . . . . . . . . . . . . . . . . . . . . . . . Average Overweight (x) . | . . . . . . . . . . . . . . . . . . . . . . . . . . . . . . . . . . . . . . . Largest Inventory Capacity 5 | 2 2 2 2 2 2 2 2 3 3 3 3 3 3 3 3 3 3 3 3 3 3 3 3 3 3 3 3 3 3 3 3 3 3 4 4 4 4 5 Average Capacity 3 | 2 2 2 2 2 2 2 2 2 3 3 3 3 3 3 3 3 3 3 3 3 3 3 3 3 3 3 3 3 3 3 3 3 3 3 4 4 4 4 Most Carried 5 | . 2 2 2 2 2 2 2 3 3 3 3 3 3 3 3 3 3 3 3 3 3 3 3 3 3 3 3 3 3 3 3 2 3 4 4 4 4 5 Average Carried 2 | . 1 1 1 1 1 2 1 1 3 3 3 2 2 2 2 3 3 3 3 3 2 2 3 2 3 3 3 2 3 3 2 2 2 3 4 3 3 4 Final Capacity 5 | 2 2 2 2 2 2 2 2 3 3 3 3 3 3 3 3 3 3 3 3 3 3 3 3 3 3 3 3 3 3 3 3 3 3 4 4 4 4 5 Final Carried 5 | . 2 2 2 2 2 2 2 3 3 3 3 2 2 3 3 3 3 3 3 3 3 3 3 3 3 3 3 3 3 3 2 2 3 4 4 4 4 5 Scrap Suit Usage (%) 1 | . . . . 1 . . . . . . . . . . . . . . . . . . . . . . . . . . . . . . . . . . Class Distribution -------------------- 37% | Scavenger-Gunner 37% | Scavenger-Tank 12% | Hacker-Tank 5% | Mutant 4% | Scavenger-Mutant Dominant Class ---------------- Mutant | -10/Materials Mutant | -10/Mines Scavenger-Gunner | -10/Exiles Scavenger-Gunner | -9/Mines Scavenger-Gunner | -8/Materials Scavenger-Mutant | -7/Factory Scavenger-Mutant | -7/Waste Scavenger-Gunner | -7/Factory Scavenger-Gunner | -7/Lower Caves Scavenger-Gunner | -7/Lower Caves Scavenger-Gunner | -7/Zion Scavenger-Gunner | -7/Deep Caves Scavenger-Gunner | -6/Proximity Caves Scavenger-Gunner | -6/Factory Scavenger-Gunner | -6/Extension Scavenger-Tank | -6/Cetus Scavenger-Tank | -6/Archives Scavenger-Tank | -6/Hub_04(d) Scavenger-Tank | -5/Factory Scavenger-Tank | -5/Waste Scavenger-Tank | -5/Factory Scavenger-Tank | -5/Upper Caves Scavenger-Tank | -5/Upper Caves Scavenger-Tank | -5/Warlord Hacker-Tank | -4/Proximity Caves Hacker-Tank | -4/Factory Hacker-Tank | -4/Waste Hacker-Tank | -4/Factory Hacker-Tank | -4/Upper Caves Hacker-Tank | -4/Upper Caves Scavenger-Tank | -4/Zhirov Scavenger-Tank | -3/Proximity Caves Scavenger-Tank | -3/Research Scavenger-Tank | -3/Testing Scavenger-Tank | -2/Research Scavenger-Tank | -2/Quarantine Scavenger-Gunner | -2/Protoforge Scavenger-Gunner | -1/Access Resources | -11 -10 -10 -10 -9 -8 -7 -7 -7 -7 -7 -7 -7 -6 -6 -6 -6 -6 -6 -5 -5 -5 -5 -5 -5 -4 -4 -4 -4 -4 -4 -4 -3 -3 -3 -2 -2 -2 -1 ----------- Run | Yrd Mat Min Exi Min Mat Fac Was Fac Low Low Zio Dee Pro Fac Ext Cet Arc Hub Fac Was Fac Upp Upp War Pro Fac Was Fac Upp Upp Zhi Pro Res Tes Res Qua Frg Acc Matter Collected 29375 | 334 169 241 764 221 1375 404 296 3406 108 96 10 540 367 1744 461 228 128 660 . . 2716 358 250 3887 110 303 55 887 297 369 73 264 329 524 926 213 4215 2047 Remotely . | . . . . . . . . . . . . . . . . . . . . . . . . . . . . . . . . . . . . . . . Salvage Created 102176 | 180 832 248 334 319 2912 848 1314 7317 451 182 . 484 552 5753 2340 622 166 3064 . . 8079 1216 1081 14048 117 1878 1555 4177 1022 1259 152 1375 1419 2132 3603 1514 15023 14608 Parts 5010 | 13 78 16 68 13 191 58 38 444 29 14 . 57 52 287 112 35 17 168 . . 443 41 46 566 18 98 36 238 38 62 1 44 89 141 189 56 762 452 Haulers Intercepted 10 | . . . . . . . . 1 . . . . . 2 . . . 1 . . . . . . . 1 . 1 . . . . . . 1 1 . 2 Recyclers Shooed 9 | . . . . . . . . . . . . . . 4 . . . . . . . . . . . 2 . 2 . . . . . . . 1 . . Parts Field Recycled . | . . . . . . . . . . . . . . . . . . . . . . . . . . . . . . . . . . . . . . . Retrieved Matter . | . . . . . . . . . . . . . . . . . . . . . . . . . . . . . . . . . . . . . . . Parts Self-Destructed 333 | . . . . . . . . . 29 14 . . 51 . . . . . . . . 29 46 . 18 . . . 39 62 1 44 . . . . . . Prevented 3 | . . . . . . . . . . . . . . . . . . . . . . . 3 . . . . . . . . . . . . . . . Parts Restored . | . . . . . . . . . . . . . . . . . . . . . . . . . . . . . . . . . . . . . . . Kills | -11 -10 -10 -10 -9 -8 -7 -7 -7 -7 -7 -7 -7 -6 -6 -6 -6 -6 -6 -5 -5 -5 -5 -5 -5 -4 -4 -4 -4 -4 -4 -4 -3 -3 -3 -2 -2 -2 -1 ------- Run | Yrd Mat Min Exi Min Mat Fac Was Fac Low Low Zio Dee Pro Fac Ext Cet Arc Hub Fac Was Fac Upp Upp War Pro Fac Was Fac Upp Upp Zhi Pro Res Tes Res Qua Frg Acc Combat Hostiles Destroyed 1577 | . 32 10 6 5 59 17 6 138 8 5 . 15 15 79 28 7 3 44 . . 141 17 12 243 5 17 6 56 19 27 . 19 24 32 53 13 212 204 Melee 4 | . . . . . . . . . . . . . . . . . . . . . . . . 4 . . . . . . . . . . . . . . Guns 1497 | . . 10 6 5 58 17 6 134 8 5 . 15 15 76 28 7 3 42 . . 136 17 12 230 5 15 6 52 19 27 . 19 24 24 53 12 209 202 Cannons 33 | . 32 . . . . . . . . . . . . . . . . . . . . . . . . . . . . . . . . 1 . . . . AOE 25 | . . . . . 1 . . 4 . . . . . 3 . . . 1 . . 4 . . 7 . . . 3 . . . . . . . . 2 . Classes Destroyed 36 | 2 2 . 3 2 5 . 1 8 . . . 1 2 1 . . . . . . 1 . . 2 . . . . . . . . . 1 . 2 3 . Worker 52 | . . . . 1 1 3 . 2 . . . . . 6 . . . 5 . . 2 . . . . 4 . 7 . . . . 1 3 2 1 4 10 Builder 43 | . . . . . . . . 2 . . . . . 7 1 . . 3 . . 2 . . . . 5 . 3 . . . . 1 . 1 2 4 12 Tunneler 9 | 5 1 . . . . . . 1 . . . . . 1 . . . . . . . . . . . . . 1 . . . . . . . . . . Hauler 10 | . . . . . . . . 1 . . . . . 2 . . . 1 . . . . . . . 1 . 1 . . . . . . 1 1 . 2 Recycler 16 | 1 1 . . . 1 . . 1 . . . . . 3 3 . . . . . . . . . . 1 . . . . . . 1 . . 2 . 2 Carrier 1 | . . . . . . . . . . . . . . . . . . . . . . . . . . . . . . . . . . . . . 1 . Mechanic 26 | . . . . . 2 . . 7 . . . . . 1 . . . . . . 2 . . 2 . . . . . . . . . . 1 . 5 6 Operator 17 | . . . . . . . . 4 . . . . . 1 . . 1 1 . . . . . . . 2 . 3 . . . . . 1 2 . 2 . Drone 16 | . . . . . . . . . . . . . . 3 . . . . . . 5 . . . 2 . . . . . . . . . . . 6 . Turret 18 | . . . 1 . . . . . . . . . . . . . . . . . . . . . . . . 17 . . . . . . . . . . Watcher 46 | . . . . . . . . 1 . . . . . 6 2 2 . 3 . . 4 . . . . 3 . 5 . . . . 1 3 4 . 6 6 Swarmer 162 | . 9 6 . . 3 3 . 17 . . . . 7 10 4 . . 3 . . 10 2 . 16 . 3 . 9 7 7 . . 6 3 13 5 4 15 Cutter 6 | . . . . . . . . 2 . . . . . . . . . . . . . . . . . . . . . . . . . . . . . 4 Saboteur 53 | . . . . . . . . . . . . . . . . . . . . . 8 . . 26 . . . . . . . . . . . . 6 13 Grunt 569 | . 23 4 . 4 38 9 . 48 7 4 . . . 40 6 . . 18 . . 43 4 6 94 . 3 . 12 6 9 . 11 10 7 12 7 81 63 Brawler 81 | . . . . 1 2 1 . 6 . . . . . . . . . . . . 11 5 1 17 . 1 . 2 2 1 . 2 . 3 1 . 15 10 Duelist 61 | . . . . . 5 1 . 5 1 . . . . 1 . . . . . . 10 . 1 5 . 2 . 4 2 1 . 1 . 1 1 . 9 11 Protector 47 | . . . . . 1 1 . 5 . . . . . 1 . . . 2 . . 5 . . 16 . . . . . . . . . 1 . . 6 9 Researcher 7 | . . . . . . . . . . . . . . . . . . . . . . . . . . . . . . . . . . . . 2 5 . Sentry 116 | . . . . . 9 2 . 11 . . . . . 8 14 . 3 12 . . 10 2 2 1 . 2 . 5 2 3 . 1 2 1 3 . 13 10 Demolisher 15 | . . . . . . . . . . . . . . . . . . 1 . . . . . 10 . . . . . . . . . . 4 . . . Specialist 16 | . . . . . . . . . . . . . 3 2 . . . . . . . . . 8 . . . . . . . . . . . . 3 . Hunter 129 | . . . . . . . . 27 . 1 . . 3 5 . . . . . . 15 . 2 7 2 4 . 12 . 4 . 4 4 6 6 . 9 18 Programmer 134 | . . . . . . . . 17 . . . . 1 7 . . . . . . 22 . . 18 . 1 . 10 . 1 . . . 8 5 . 18 26 Heavy 8 | . . . . . 1 . . . . . . . . 1 . . . 1 . . 1 . . . . 1 . 2 . . . . . . . . . 1 Q-Series 2 | . . . . . . . . . . . . . . . . . . . . . . . . . . . . . . . . . . . . . 2 . Behemoth 15 | . . . . . . . . . . . . . 1 1 2 . . 1 . . . . 1 . 1 . . . . 1 . . 2 . 2 . 1 2 Compactor 12 | . . . . . . . 6 . . . . . . . . . . . . . . . . . . . 6 . . . . . . . . . . . Cetus Guard 7 | . . . . . . . . . . . . . . . . 7 . . . . . . . . . . . . . . . . . . . . . . Enhanced Grunt 1 | . . . . . . . . . . . . . . . . . . . . . . . . . . . . . . . 1 . . . . . . . Lightning 6 | . . . . . . . . . . . . . . . . . . 6 . . . . . . . . . . . . . . . . . . . . Hotshot 16 | . . . . . . . . . . . . . . . . . . . . . . . . . . . . . . . . . . . . . 16 . Decapitator 6 | . . . . . . . . . . . . . . . . . . . . . . . . . . . . . . . . . . . . . 6 . Immortal 5 | . . . . . . . . . . . . . . . . . . . . . . . . . . . . . . . . . . . . . 5 . Overlord 1 | . . . . . . . . . . . . . . . . . . . . . . . . . . . . . . . . . . . . . 1 . Investigator 1 | . . . . . . . . . . . . . . . . . . . . . . . . . . . . . . . . . . . . . . 1 Striker 35 | . . . . . . . . . . . . . . . . . . . . . . . . 13 . . . . . . . . . 1 4 . 1 16 Executioner 25 | . . . . . . . . . . . . . . . . . . . . . . . . 13 . . . . . . . . . . 2 . 4 6 Alpha 7 5 | . . . . . . . . . . . . . . . . . . . . . . . . . . . . . . . . . . 1 . . 4 . Fortress 1 | . . . . . . . . . . . . . . . . . . . . . . . . . . . . . . . . . . . . 1 . . V-Series 2 | . . . . . . . . . . . . . . . . . . . . . . . . . . . . . . . . . . . . . 2 . Zionite 4 | . . . 4 . . . . . . . . . . . . . . . . . . . . . . . . . . . . . . . . . . . Z-Light 11 | . . . . . . . . . . . . 11 . . . . . . . . . . . . . . . . . . . . . . . . . . Assembled 8 | . . . 5 . . . . . . . . 3 . . . . . . . . . . . . . . . . . . . . . . . . . . Surgeon 1 | . . . . . . . . 1 . . . . . . . . . . . . . . . . . . . . . . . . . . . . . . Wasp 3 | . . . . . . . . 1 . . . . . . . . . . . . 2 . . . . . . . . . . . . . . . . . Thug 5 | . . . . . . . . . . . . . . . 2 . . . . . . 1 . 2 . . . . . . . . . . . . . . Savage 4 | . . . . . . . . . . . . 1 . . . . . . . . . 3 . . . . . . . . . . . . . . . . Martyr 1 | . . . . . . . . 1 . . . . . . . . . . . . . . . . . . . . . . . . . . . . . . Best Kill Streak 57 | 5 4 3 6 3 11 16 2 25 8 4 . 5 4 26 10 5 4 24 . . 22 7 6 36 2 8 4 17 9 14 . 7 9 6 17 12 27 57 Combat Bots Only 43 | . 3 3 4 3 10 13 2 23 8 4 . 5 4 14 6 4 3 16 . . 22 7 6 35 2 5 4 9 9 14 . 7 7 5 10 8 26 43 Max Kills in Single Turn 6 | 1 1 1 2 1 3 2 1 5 2 1 . 2 3 3 3 1 2 4 . . 4 3 3 5 1 2 1 6 2 3 1 1 2 1 3 2 5 5 Gunslinging 1 | . . . . . 1 1 . 1 . . . . . 1 1 . 1 1 . . 1 . 1 1 . . . . . 1 . . . . 1 . 1 1 Exploded 5 | . . . . . 1 . . 4 . . . . . 2 . . . 1 . . 3 . . 5 . . . 3 . . . . . . . . 2 . Melee 1 | . . . . . . . . . . . . . . . . . . . . . . . . 1 . . . . . . . . . . . . . . Uniques/NPCs Destroyed 6 | . . . 4 . . . . . . . . 1 . . . . . . . . 1 . . . . . . . . . . . . . . . . . 8R-AWN (-10/Exiles) EX-DEC (-10/Exiles) EX-BIN (-10/Exiles) EX-HEX (-10/Exiles) Z-Imprinter (-7/Deep Caves) QV-33N (-5/Factory) Combat | -11 -10 -10 -10 -9 -8 -7 -7 -7 -7 -7 -7 -7 -6 -6 -6 -6 -6 -6 -5 -5 -5 -5 -5 -5 -4 -4 -4 -4 -4 -4 -4 -3 -3 -3 -2 -2 -2 -1 -------- Run | Yrd Mat Min Exi Min Mat Fac Was Fac Low Low Zio Dee Pro Fac Ext Cet Arc Hub Fac Was Fac Upp Upp War Pro Fac Was Fac Upp Upp Zhi Pro Res Tes Res Qua Frg Acc Hostile Shots Fired 5059 | . 100 32 117 7 128 33 . 537 18 4 . 49 75 264 147 29 4 156 . . 490 10 26 416 29 92 . 375 38 101 2 59 97 177 147 33 679 588 Missed 2015 | . 30 11 22 2 49 13 . 215 9 1 . 20 25 110 68 11 1 73 . . 244 6 11 154 15 50 . 149 14 39 . 23 42 68 59 14 223 244 Hits 3044 | . 70 21 95 5 79 20 . 322 9 3 . 29 50 154 79 18 3 83 . . 246 4 15 262 14 42 . 226 24 62 2 36 55 109 88 19 456 344 Melee 14 | . . . 2 . . . . . . . . . . . . . . . . . 1 . . 4 . . . . . . . . . . 2 . 3 2 Projectile 3030 | . 70 21 93 5 79 20 . 322 9 3 . 29 50 154 79 18 3 83 . . 245 4 15 258 14 42 . 226 24 62 2 36 55 109 86 19 453 342 AOE 40 | . . . . . . . . . . . . . . . . . . . . . . . . 6 . . . 2 . . . . . . 5 . 22 5 Critical Strikes 201 | . . . 34 . 3 1 . 5 . . . . 1 18 3 3 . 6 . . 15 1 2 15 1 1 . 19 . 4 . . 1 4 2 1 40 21 Actively Blocked 89 | . . . . . . . . . . . . . . . . . . . . . . . . . . . . 16 . 4 . . 1 4 2 1 40 21 Part Disruptions 4 | . . . 1 . . . . 1 . . . . . . . . . . . . . . . . . . . . . . 1 . . . . . 1 . Damage Taken 33152 | . 698 264 1597 64 1221 207 . 3200 144 11 . 856 789 1964 774 286 71 629 . . 2590 66 212 3270 181 404 . 2367 224 552 593 370 773 1095 1566 288 3462 2364 Core 18090 | . 477 169 1062 49 852 102 . 1583 62 4 . 452 411 948 407 162 27 303 . . 1342 30 95 1837 91 197 . 1195 135 295 368 192 448 604 873 141 1826 1351 Absorbed by Shields 9097 | . . . . . . . . . . . . . . . 235 135 . . . . 153 . 22 1210 68 155 . 894 84 215 26 81 285 81 . . 3158 2295 Redirected to Core 16566 | . 374 121 889 49 781 98 . 1481 62 4 . 391 410 896 361 150 27 295 . . 1268 30 95 1609 76 197 . 1122 117 268 368 173 406 568 836 141 1675 1228 Ignored by Resistances 22314 | . . . . . 44 36 . 1239 . 1 . 9 98 542 202 78 9 1006 . . 2127 20 74 1671 34 246 . 1592 129 441 50 193 404 780 680 114 6754 3741 Core Remaining (%) 90 | 100 . . . 23 97 . . . . . . . 100 . . . . 100 . . . . . . 100 . . . . . . 100 . 91 . . 100 90 Volleys Fired 2610 | 9 80 26 97 16 172 32 23 338 9 8 . 25 27 127 36 19 9 55 . . 228 19 20 331 10 23 5 86 18 29 7 20 29 68 68 12 332 197 Largest 3 | 2 2 3 3 1 2 2 2 3 2 2 . 2 2 2 2 2 2 2 . . 2 2 2 2 2 2 2 2 2 2 2 2 2 2 2 2 2 2 Hottest 290 | 40 136 60 70 30 60 60 60 80 60 60 . 60 60 60 60 60 60 60 . . 60 60 60 290 68 68 68 68 68 68 68 68 68 200 80 200 200 80 Shots Fired 6395 | 18 112 63 213 16 205 64 46 580 25 19 . 65 68 360 114 48 20 165 . . 604 51 58 778 33 93 30 320 55 100 18 68 111 136 190 46 896 607 Gun 6236 | 18 8 63 213 16 205 64 46 579 25 19 . 65 67 360 114 48 20 165 . . 604 51 58 770 33 93 30 320 55 100 18 68 111 113 190 45 875 607 Cannon 149 | . 104 . . . . . . . . . . . . . . . . . . . . . . . . . . . . . . . . 23 . 1 21 . Launcher 8 | . . . . . . . . . . . . . . . . . . . . . . . . 8 . . . . . . . . . . . . . . Special 2 | . . . . . . . . 1 . . . . 1 . . . . . . . . . . . . . . . . . . . . . . . . . Kinetic 4593 | 18 8 63 213 16 205 64 46 521 18 16 . 50 52 254 72 38 18 110 . . 456 38 40 593 20 46 10 172 36 58 14 40 58 53 136 23 623 395 Thermal 1800 | . 104 . . . . . . 59 7 3 . 15 15 106 42 10 2 55 . . 148 13 18 184 13 47 20 148 19 42 4 28 53 83 54 23 273 212 Explosive . | . . . . . . . . . . . . . . . . . . . . . . . . . . . . . . . . . . . . . . . Electromagnetic . | . . . . . . . . . . . . . . . . . . . . . . . . . . . . . . . . . . . . . . . Entropic 1 | . . . . . . . . . . . . . . . . . . . . . . . . 1 . . . . . . . . . . . . . . Robot Hit Streak 107 | 6 9 10 24 6 16 30 23 26 6 14 . 18 21 27 26 17 11 24 . . 29 14 30 35 38 39 16 27 24 20 8 41 27 15 26 14 107 74 Robot Miss Streak 11 | 2 3 4 3 1 3 2 1 3 2 1 . 3 3 11 3 2 2 4 . . 7 2 3 6 3 5 1 6 2 4 1 2 3 2 8 3 4 2 Penetration Max 4 | . . . 1 1 2 2 1 2 1 1 . 1 1 2 1 1 1 2 . . 2 2 1 2 . 2 1 2 1 2 1 1 2 2 2 2 4 4 Secondary Targets 129 | . . . . . 1 2 . 12 . . . 1 . 5 2 3 1 4 . . 19 . 3 30 . 1 . 4 . 3 . 1 . . 5 . 17 15 Max Gunslinging Chain 1 | . . . . . 1 1 . 1 . . . 1 . 1 1 1 1 1 . . 1 . 1 1 . 1 . 1 . 1 . 1 . . 1 . 1 1 Autonomous 1684 | . . . . . . . . 70 9 3 . 15 16 106 42 10 2 55 . . 164 13 20 177 13 47 20 148 19 42 4 28 53 59 54 22 254 219 Shots Hit Robots 5197 | 10 72 39 174 13 160 47 40 420 19 16 . 52 53 281 105 43 18 143 . . 452 36 52 646 27 79 29 277 49 90 15 53 103 99 150 40 734 561 Core Hits 3903 | 6 36 15 47 7 97 28 10 277 17 7 . 36 27 191 65 22 7 104 . . 303 33 27 462 14 66 18 201 36 58 12 42 65 89 132 39 701 606 Critical Kills 930 | . . . 1 2 43 16 5 99 6 3 . 5 4 49 10 5 4 22 . . 81 8 4 151 1 8 . 16 5 5 1 2 1 10 43 10 156 154 Critical Parts Destroyed 1443 | . . . 4 5 46 16 3 159 1 3 . 7 15 75 24 5 2 35 . . 114 8 13 220 2 7 1 30 7 11 1 4 6 14 61 13 252 279 Critical Strikes 2507 | . . . 7 7 90 34 16 263 7 6 . 13 19 127 38 16 8 59 . . 199 18 19 382 3 15 3 47 12 17 3 6 7 25 111 23 449 458 Meltdown 11 | . . . . . . . . . . . . . . . . . . . . . . . . . . . . . . . . . . 9 . 1 1 . Destroy 2496 | . . . 7 7 90 34 16 263 7 6 . 13 19 127 38 16 8 59 . . 199 18 19 382 3 15 3 47 12 17 3 6 7 16 111 22 448 458 Melee Attacks 22 | . . . . . . . . . . . . . . . . . . . . . . . . 6 . . . . . . . . . 1 . . 7 8 Impact 9 | . . . . . . . . . . . . . . . . . . . . . . . . . . . . . . . . . . 1 . . . 8 Slashing . | . . . . . . . . . . . . . . . . . . . . . . . . . . . . . . . . . . . . . . . Piercing 12 | . . . . . . . . . . . . . . . . . . . . . . . . 5 . . . . . . . . . . . . 7 . Entropic 1 | . . . . . . . . . . . . . . . . . . . . . . . . 1 . . . . . . . . . . . . . . Sneak Attacks . | . . . . . . . . . . . . . . . . . . . . . . . . . . . . . . . . . . . . . . . Combat Hostiles . | . . . . . . . . . . . . . . . . . . . . . . . . . . . . . . . . . . . . . . . Follow-up Attacks . | . . . . . . . . . . . . . . . . . . . . . . . . . . . . . . . . . . . . . . . Damage Inflicted 206051 | 126 1511 502 2163 294 4354 1010 759 13912 591 477 . 1628 1485 10864 4078 1400 392 6435 . . 16999 1463 1872 24593 1055 4180 1611 15805 1861 3882 693 3063 5377 6148 5693 1953 31228 26594 Guns 196336 | 126 48 502 2163 294 4201 1010 759 12944 591 477 . 1628 1485 9723 4078 1400 392 5213 . . 15709 1463 1872 23659 1055 4167 1611 14097 1861 3882 693 3063 5377 5961 5693 1950 30595 26594 Cannons 1752 | . 1463 . . . . . . . . . . . . . . . . . . . . . . . . . . . . . . . . 187 . 3 99 . Explosions 7886 | . . . . . 153 . . 957 . . . . . 1141 . . . 1222 . . 1290 . . 868 . 13 . 1708 . . . . . . . . 534 . Melee 66 | . . . . . . . . . . . . . . . . . . . . . . . . 66 . . . . . . . . . . . . . . Ramming . | . . . . . . . . . . . . . . . . . . . . . . . . . . . . . . . . . . . . . . . Kinetic 81941 | 126 48 502 2163 294 4201 1010 759 9574 241 255 . 805 563 4170 1381 671 280 2121 . . 7165 652 696 13392 267 1215 225 4021 719 1214 328 633 1234 461 1787 399 9578 8791 Thermal 119968 | . 1463 . . . 52 . . 4220 350 222 . 823 922 5662 2697 729 112 3092 . . 9834 811 1176 10267 788 2952 1386 11596 1142 2668 365 2430 4143 5687 3906 1554 21116 17803 Explosive 2552 | . . . . . . . . 118 . . . . . 1032 . . . . . . . . . 868 . . . . . . . . . . . . 534 . Electromagnetic 1524 | . . . . . 101 . . . . . . . . . . . . 1222 . . . . . . . 13 . 188 . . . . . . . . . . Impact . | . . . . . . . . . . . . . . . . . . . . . . . . . . . . . . . . . . . . . . . Slashing . | . . . . . . . . . . . . . . . . . . . . . . . . . . . . . . . . . . . . . . . Piercing 66 | . . . . . . . . . . . . . . . . . . . . . . . . 66 . . . . . . . . . . . . . . Highest Corruption 2 | . 2 2 2 . . . . . . . . . . 1 1 1 1 . . . 1 1 1 1 1 . . . . . . . . . 1 1 2 1 Average Corruption 1 | . 2 2 1 . . . . . . . . . . 1 1 1 1 . . . 1 1 1 1 1 . . . . . . . . . 1 1 1 1 Corruption Purged 3 | . . . 2 . . . . . . . . . . . . . 1 . . . . . . . . . . . . . . . . . . . . . Corruption Blocked . | . . . . . . . . . . . . . . . . . . . . . . . . . . . . . . . . . . . . . . . Effects 91 | . 8 9 12 . . . . . . . . . . 2 3 3 . . . . 1 2 3 8 2 . . . . . . . . . 4 4 25 5 Message Errors 18 | . . 4 1 . . . . . . . . . . . 1 1 . . . . . 2 1 . . . . . . . . . . . 2 . 5 1 Matter Fused 23 | . 2 1 6 . . . . . . . . . . . 1 . . . . . . . . 4 . . . . . . . . . . 1 2 5 1 Heat Flow Errors 10 | . 1 1 . . . . . . . . . . . 1 . 1 . . . . . . 2 . 2 . . . . . . . . . . . 2 . Energy Discharges 18 | . 2 1 3 . . . . . . . . . . 1 1 . . . . . . . . 1 . . . . . . . . . . 1 . 7 1 Parts Fused 3 | . . . 1 . . . . . . . . . . . . 1 . . . . . . . . . . . . . . . . . . . . 1 . Data Loss (minor) 7 | . 1 1 . . . . . . . . . . . . . . . . . . . . . 2 . . . . . . . . . . . 1 1 1 Data Loss (major) 4 | . 1 . . . . . . . . . . . . . . . . . . . 1 . . . . . . . . . . . . . . . 2 . Misfires 4 | . . 1 . . . . . . . . . . . . . . . . . . . . . . . . . . . . . . . . . 1 1 1 Alerts 2 | . 1 . . . . . . . . . . . . . . . . . . . . . . . . . . . . . . . . . . . 1 . Weapon Failures 2 | . . . 1 . . . . . . . . . . . . . . . . . . . . 1 . . . . . . . . . . . . . . Overload Shots . | . . . . . . . . . . . . . . . . . . . . . . . . . . . . . . . . . . . . . . . Overflow Damage 951 | . 4 . . . . . . 207 . . . . . 89 . . . 67 . . 263 . . 22 . . . 288 . . . . . . . . 11 . Projectiles 4 | . 4 . . . . . . . . . . . . . . . . . . . . . . . . . . . . . . . . . . . . . Explosions 941 | . . . . . . . . 207 . . . . . 89 . . . 67 . . 263 . . 16 . . . 288 . . . . . . . . 11 . Melee 6 | . . . . . . . . . . . . . . . . . . . . . . . . 6 . . . . . . . . . . . . . . Knockbacks . | . . . . . . . . . . . . . . . . . . . . . . . . . . . . . . . . . . . . . . . Impact . | . . . . . . . . . . . . . . . . . . . . . . . . . . . . . . . . . . . . . . . Kinetic . | . . . . . . . . . . . . . . . . . . . . . . . . . . . . . . . . . . . . . . . Secondary . | . . . . . . . . . . . . . . . . . . . . . . . . . . . . . . . . . . . . . . . Self-Inflicted Damage 148 | . . . . . . . . 66 . . . . . . . . . 18 . . . . . . . . . . . . . . . . . . . 64 Shots 4 | . . . . . . . . 1 . . . . . . . . . 2 . . . . . . . . . . . . . . . . . . . 1 Rammed . | . . . . . . . . . . . . . . . . . . . . . . . . . . . . . . . . . . . . . . . Targets Rammed . | . . . . . . . . . . . . . . . . . . . . . . . . . . . . . . . . . . . . . . . Kicked . | . . . . . . . . . . . . . . . . . . . . . . . . . . . . . . . . . . . . . . . Crushed . | . . . . . . . . . . . . . . . . . . . . . . . . . . . . . . . . . . . . . . . Highest Temperature 370 | . 126 230 45 . 206 34 27 340 266 125 . 251 234 289 324 216 90 250 . . 370 137 260 200 117 . 5 . 5 5 . . . . . . . 111 Average Temperature 79 | . 36 122 12 . 42 13 11 52 132 60 . 91 83 120 94 112 52 77 . . 117 54 108 82 43 . 5 . 5 5 . . . . . . . 111 Received Heat Transfer 6896 | . 225 108 200 36 540 48 . 690 81 . . 252 24 652 296 43 . 252 . . 948 36 60 547 . 47 . 273 33 126 12 66 142 144 144 27 633 211 Effects 13 | . . . . . 1 . . 3 . . . . . 1 . . . . . . 8 . . . . . . . . . . . . . . . . . Energy Bleed 5 | . . . . . 1 . . 1 . . . . . 1 . . . . . . 2 . . . . . . . . . . . . . . . . . Interference 8 | . . . . . . . . 2 . . . . . . . . . . . . 6 . . . . . . . . . . . . . . . . . Siege Activations . | . . . . . . . . . . . . . . . . . . . . . . . . . . . . . . . . . . . . . . . Martial Activations . | . . . . . . . . . . . . . . . . . . . . . . . . . . . . . . . . . . . . . . . Shielding Activations . | . . . . . . . . . . . . . . . . . . . . . . . . . . . . . . . . . . . . . . . Robots Disrupted 2 | . . . . . 1 . . . . . . . . . . . . . . . . . . . . 1 . . . . . . . . . . . . Combat Hostiles 2 | . . . . . 1 . . . . . . . . . . . . . . . . . . . . 1 . . . . . . . . . . . . Robots Corrupted 1 | . . . . . . . . . . . . . . . . . . 1 . . . . . . . . . . . . . . . . . . . . Combat Hostiles 1 | . . . . . . . . . . . . . . . . . . 1 . . . . . . . . . . . . . . . . . . . . Parts Fried 12 | . . . . . . . . . . . . . . . 2 2 . 7 . . . . . . . . . . . . . . . . . . 1 . Impact Corruptions . | . . . . . . . . . . . . . . . . . . . . . . . . . . . . . . . . . . . . . . . Robots Melted 20 | . . . . . . . . . . . . . . . . . . . . . 1 . . 2 . 2 . 1 . . . . . 9 . 1 1 3 Combat Hostiles 16 | . . . . . . . . . . . . . . . . . . . . . 1 . . 2 . 2 . 1 . . . . . 7 . 1 . 2 Parts Melted 166 | . 2 . . . . . . 2 . . . 17 1 2 1 1 . 3 . . 11 1 2 41 2 4 . 17 . 3 . 2 3 25 3 3 1 19 Heat Transferred 89718 | . 2516 . . . 50 . . 2754 300 200 . 617 825 4399 2386 650 100 2712 . . 7482 750 1050 8137 700 2525 1150 9442 1000 2300 161 1625 2775 3104 2300 928 14651 12129 Parts Sabotaged 2 | . . . . . . . . . . . . . . . . . . . . . . . . 2 . . . . . . . . . . . . . . Parts Stolen . | . . . . . . . . . . . . . . . . . . . . . . . . . . . . . . . . . . . . . . . Parts Stripped . | . . . . . . . . . . . . . . . . . . . . . . . . . . . . . . . . . . . . . . . Power Chain Reactions . | . . . . . . . . . . . . . . . . . . . . . . . . . . . . . . . . . . . . . . . Alert | -11 -10 -10 -10 -9 -8 -7 -7 -7 -7 -7 -7 -7 -6 -6 -6 -6 -6 -6 -5 -5 -5 -5 -5 -5 -4 -4 -4 -4 -4 -4 -4 -3 -3 -3 -2 -2 -2 -1 ------- Run | Yrd Mat Min Exi Min Mat Fac Was Fac Low Low Zio Dee Pro Fac Ext Cet Arc Hub Fac Was Fac Upp Upp War Pro Fac Was Fac Upp Upp Zhi Pro Res Tes Res Qua Frg Acc Maximum Alert Level 5 | . 3 1 . . 5 4 2 5 . . . . . 5 5 4 2 5 4 2 5 . . . . 2 . 5 . . . . 3 2 4 3 5 5 Low Security (%) 9 | 100 31 . . 100 12 . . . . . . . . 17 . . . . . . . . . . . 66 100 20 . . . . 13 . . . . . Level 1 12 | . 13 100 . . . . 87 1 . . . . . 15 . . . 7 . . 1 . . . . 29 . 5 . . . . 32 51 12 . . . Level 2 12 | . 46 . . . 14 7 12 . . . . . . 8 . . 100 1 . 100 2 . . . . 3 . 21 . . . . 18 48 34 . 1 . Level 3 14 | . 7 . . . 20 76 . 11 . . . . . 17 25 . . 15 . . 1 . . . . . . 22 . . . . 35 . 30 100 16 . Level 4 20 | . . . . . 51 15 . 49 . . . . . 18 44 100 . 45 100 . 25 . . . . . . 8 . . . . . . 21 . 15 . Level 5 13 | . . . . . . . . 1 . . . . . 21 6 . . 3 . . 2 . . . . . . 11 . . . . . . . . 66 7 High Security 18 | . . . . . . . . 32 . . . . . . 23 . . 26 . . 67 . . . . . . 9 . . . . . . . . . 92 Max Security . | . . . . . . . . . . . . . . . . . . . . . . . . . . . . . . . . . . . . . . . Sterilizations 4 | . . . . . 1 . . 1 . . . . . . . . . . . . 1 . . . . . . . . . . . . . . . . 1 Peak Influence 8599 | 10 722 344 . 114 1603 1199 416 4377 . . . . . 1913 2234 1313 680 3123 1530 535 4667 . . . . 442 158 2100 . . . . 808 676 1541 1037 5395 8599 Initial 3235 | . 6 269 . . . 712 416 185 . . . . . 60 935 1239 487 227 1530 535 311 . . . . . 154 75 . . . . 132 410 240 866 566 3235 Average 1657 | 3 366 294 . 41 961 886 343 1844 . . . . . 884 1421 1248 638 1557 1530 492 2509 . . . . 150 136 862 . . . . 466 419 814 927 2573 5981 Influence Increases 48762 | 30 1104 255 . 144 2013 597 9 5296 190 120 . . 355 2517 1499 198 203 3116 . . 5494 270 333 5082 90 814 14 2451 455 624 10 426 1018 965 1651 461 5544 5414 Destroy 0b10 Robot/C 30920 | . 640 200 . 100 1160 320 . 2920 160 100 . . 300 1500 800 160 80 1160 . . 2880 260 260 4560 60 340 . 1120 380 540 . 380 520 620 1060 300 4120 3920 Destroy 0b10 Robot/NC 1475 | 30 10 . . 5 25 20 . 135 10 . . . . 140 35 10 5 90 . . 120 . . 90 10 80 . 95 . . 10 5 20 40 55 30 170 235 Destroy Leader 4220 | . 140 40 . 20 230 60 . 556 20 20 . . 40 326 64 . . 222 . . 464 10 30 . 20 78 . 272 20 20 . 40 102 86 230 22 522 566 Allied During Kill 2871 | . . . . . . . . 316 . . . . . . 493 23 85 894 . . 705 . 43 237 . . . . 10 64 . 1 . . . . . . Successful Hack 867 | . 6 . . . 20 14 . 60 . . . . . 30 12 . . 12 . . 153 . . . . 80 . 98 . . . . 189 48 48 28 69 . Select Force Hacks 290 | . 260 . . . 30 . . . . . . . . . . . . . . . . . . . . . . . . . . . . . . . . . Disable Machine 3240 | . 45 . . 15 135 . . 840 . . . . . 345 45 . 30 345 . . 495 . . . . 60 . 420 . . . . 45 90 . . 270 60 Anti-Garrison Action 450 | . . . . . 150 150 . . . . . . . . . . . . . . . . . . . . . . . . . . . . . . . 150 Destroy Structure 2254 | . 3 . . 4 83 3 9 139 . . . . . 101 20 5 3 378 . . 422 . . . . 56 14 326 . . . . 82 66 168 51 183 138 Partial Spotted 300 | . . . . . 45 . . 60 . . . . . 45 30 . . . . . 15 . . . . 30 . 60 . . . . 15 . . . . . Lose Combat Pursuer 1875 | . . 15 . . 135 30 . 270 . . . . 15 30 . . . 15 . . 240 . . 195 . 90 . 60 45 . . . 45 15 90 30 210 345 Influence Decreases 40163 | 20 423 660 286 144 446 975 933 1184 1867 719 2101 . 258 705 1194 1193 772 643 1593 1085 1272 1990 879 2941 4632 372 348 459 1087 598 1504 230 484 1268 537 995 1158 2208 Entered New Map 28467 | . 4 422 286 . . 855 773 80 1621 513 2101 . . 37 974 975 732 423 1593 995 134 1728 561 2401 4542 . 288 33 777 280 1494 . 64 320 187 675 441 2158 Time Decay 9176 | 20 419 238 . 144 436 120 160 574 246 206 . . 258 518 160 198 40 180 . 90 278 262 318 500 90 222 60 416 310 318 . 230 380 498 350 170 717 50 Lost Part 10 | . . . . . 10 . . . . . . . . . . . . . . . . . . . . . . . . . . . . . . . . . Lost Ally 560 | . . . . . . . . 230 . . . . . . 60 20 . 40 . . 110 . . 40 . . . 10 . . 10 . 40 . . . . . Purge Threat 1950 | . . . . . . . . 300 . . . . . 150 . . . . . . 750 . . . . 150 . . . . . . . 450 . 150 . . Squads Dispatched 282 | . 10 . . . 13 4 . 46 . . . . . 19 7 . . 12 . . 40 . . . . 8 . 22 . . . . 3 7 1 7 41 42 Investigation 30 | . 9 . . . 4 1 . 7 . . . . . 6 . . . . . . 1 . . . . . . . . . . . . . . . 2 . Extermination 24 | . . . . . . . . 4 . . . . . 3 . . . . . . 2 . . . . 1 . 3 . . . . . 3 . 1 7 . Reinforcement 63 | . 1 . . . 2 . . 7 . . . . . 5 3 . . 3 . . 3 . . . . 4 . 9 . . . . 3 2 1 5 8 7 Assault 142 | . . . . . 4 2 . 25 . . . . . 1 4 . . 6 . . 33 . . . . . . 6 . . . . . 2 . 1 24 34 Garrison 23 | . . . . . 3 1 . 3 . . . . . 4 . . . 3 . . 1 . . . . 3 . 4 . . . . . . . . . 1 Intercept . | . . . . . . . . . . . . . . . . . . . . . . . . . . . . . . . . . . . . . . . Searches Triggered . | . . . . . . . . . . . . . . . . . . . . . . . . . . . . . . . . . . . . . . . Unchained Authorized 4 | . . . . . . . . . . . . . . 1 . . . . . . 1 . . . . 1 . 1 . . . . . . . . . . Construction Impeded 15 | . . . . . 1 . . 1 . . . . . 1 1 . . . . . . . . . . 2 . 4 . . . . . . 1 1 1 2 Haulers Reinforced 7 | . . . . . . . . . . . . . . 1 . . . 1 . . . . . . . 1 . 1 . . . . . 1 . . . 2 Active Scanning Responses . | . . . . . . . . . . . . . . . . . . . . . . . . . . . . . . . . . . . . . . . Cargo Convoy Interrupts 2 | . . . . . . . . 1 . . . . . 1 . . . . . . . . . . . . . . . . . . . . . . . . Stealth | -11 -10 -10 -10 -9 -8 -7 -7 -7 -7 -7 -7 -7 -6 -6 -6 -6 -6 -6 -5 -5 -5 -5 -5 -5 -4 -4 -4 -4 -4 -4 -4 -3 -3 -3 -2 -2 -2 -1 --------- Run | Yrd Mat Min Exi Min Mat Fac Was Fac Low Low Zio Dee Pro Fac Ext Cet Arc Hub Fac Was Fac Upp Upp War Pro Fac Was Fac Upp Upp Zhi Pro Res Tes Res Qua Frg Acc Distress Signals 56 | . 2 . . . 1 . . 6 . . . . . 2 3 2 . 3 . . 5 . . 2 . 1 . 6 . . . . 10 2 5 1 1 4 Communications Jammed . | . . . . . . . . . . . . . . . . . . . . . . . . . . . . . . . . . . . . . . . Distress Signals . | . . . . . . . . . . . . . . . . . . . . . . . . . . . . . . . . . . . . . . . Times Spotted 2099 | . 48 11 26 4 76 13 5 218 8 5 . 17 14 112 53 10 4 56 . . 192 12 11 292 4 31 6 157 20 26 3 18 35 37 70 23 227 255 Peak Tracking Total 27 | . 5 3 9 3 8 5 2 14 8 3 . 5 4 13 27 5 2 10 . . 15 3 7 20 2 8 3 22 9 7 3 5 7 5 9 6 14 16 Tactical Retreats 98 | . . 1 5 . 6 2 . 12 . . . 1 1 2 . . . 1 . . 6 . . 4 . 3 . 16 3 . . . 2 1 4 1 11 16 ID Masks Used 1 | . . . . . . . . . . . . . . . . . . . . . 1 . . . . . . . . . . . . . . . . . Traps | -11 -10 -10 -10 -9 -8 -7 -7 -7 -7 -7 -7 -7 -6 -6 -6 -6 -6 -6 -5 -5 -5 -5 -5 -5 -4 -4 -4 -4 -4 -4 -4 -3 -3 -3 -2 -2 -2 -1 ------- Run | Yrd Mat Min Exi Min Mat Fac Was Fac Low Low Zio Dee Pro Fac Ext Cet Arc Hub Fac Was Fac Upp Upp War Pro Fac Was Fac Upp Upp Zhi Pro Res Tes Res Qua Frg Acc Traps Triggered 53 | . 3 . . . . 1 . 7 . . . . . 4 4 . . 3 1 . 2 . . . . 4 . 1 . . . . 4 4 . 1 13 1 Indirectly . | . . . . . . . . . . . . . . . . . . . . . . . . . . . . . . . . . . . . . . . Trap Hack Attempts . | . . . . . . . . . . . . . . . . . . . . . . . . . . . . . . . . . . . . . . . Triggered . | . . . . . . . . . . . . . . . . . . . . . . . . . . . . . . . . . . . . . . . Disarmed 6 | . . . . . . . . . . . . . . . . . . . . . . . . . . 6 . . . . . . . . . . . . Reprogrammed 4 | . . . . . . . . . . . . . . . . . . . . . . . . . . 4 . . . . . . . . . . . . Reused . | . . . . . . . . . . . . . . . . . . . . . . . . . . . . . . . . . . . . . . . Traps Extracted . | . . . . . . . . . . . . . . . . . . . . . . . . . . . . . . . . . . . . . . . Installed . | . . . . . . . . . . . . . . . . . . . . . . . . . . . . . . . . . . . . . . . Triggered . | . . . . . . . . . . . . . . . . . . . . . . . . . . . . . . . . . . . . . . . Time Bombs Activated 1 | . . . . . . . . . . . . . . . . . . . . . . . . . . . . . . . . . . . . . 1 . Exploded 1 | . . . . . . . . . . . . . . . . . . . . . . . . . . . . . . . . . . . . . 1 . Machines | -11 -10 -10 -10 -9 -8 -7 -7 -7 -7 -7 -7 -7 -6 -6 -6 -6 -6 -6 -5 -5 -5 -5 -5 -5 -4 -4 -4 -4 -4 -4 -4 -3 -3 -3 -2 -2 -2 -1 ---------- Run | Yrd Mat Min Exi Min Mat Fac Was Fac Low Low Zio Dee Pro Fac Ext Cet Arc Hub Fac Was Fac Upp Upp War Pro Fac Was Fac Upp Upp Zhi Pro Res Tes Res Qua Frg Acc Machines Disabled 254 | . 3 . 7 1 10 1 . 56 . . . . 2 23 4 . 2 23 . . 37 . 1 8 . 4 . 28 1 1 2 1 3 8 . . 21 7 Max in Single Turn 15 | . 1 . 1 1 4 1 . 15 . . . . 1 6 1 . 1 10 . . 3 . . 2 . 1 . 5 1 1 1 1 1 1 . . 1 1 Garrison Access 18 | . . . . . 1 1 . 3 . . . . . 2 . . . 1 . . 3 . . . . . . 1 . . . . 3 1 1 . . 1 Network Hub 4 | . . . . . . . . . . . . . . . . . . 4 . . . . . . . . . . . . . . . . . . . . Machines Repaired . | . . . . . . . . . . . . . . . . . . . . . . . . . . . . . . . . . . . . . . . Machines Dismantled . | . . . . . . . . . . . . . . . . . . . . . . . . . . . . . . . . . . . . . . . Machines Sabotaged 4 | . 4 . . . . . . . . . . . . . . . . . . . . . . . . . . . . . . . . . . . . . Overloaded Fab Kills . | . . . . . . . . . . . . . . . . . . . . . . . . . . . . . . . . . . . . . . . Hacking | -11 -10 -10 -10 -9 -8 -7 -7 -7 -7 -7 -7 -7 -6 -6 -6 -6 -6 -6 -5 -5 -5 -5 -5 -5 -4 -4 -4 -4 -4 -4 -4 -3 -3 -3 -2 -2 -2 -1 --------- Run | Yrd Mat Min Exi Min Mat Fac Was Fac Low Low Zio Dee Pro Fac Ext Cet Arc Hub Fac Was Fac Upp Upp War Pro Fac Was Fac Upp Upp Zhi Pro Res Tes Res Qua Frg Acc Machines Accessed 115 | . 8 . 1 . 6 1 . 17 1 . . . . 11 4 . . 8 . . 13 . 1 2 . 8 . 10 . 1 4 . 8 6 2 1 2 . Terminals 71 | . 5 . . . 3 . . 9 . . . . . 7 4 . . 6 . . 9 . . . . 7 . 7 . 1 . . 4 5 2 1 1 . Fabricators 11 | . . . . . . 1 . 4 . . . . . 2 . . . . . . 1 . . . . 1 . 1 . . . . 1 . . . . . Repair Stations 2 | . 1 . . . 1 . . . . . . . . . . . . . . . . . . . . . . . . . . . . . . . . . Recycling Units 3 | . 2 . . . 1 . . . . . . . . . . . . . . . . . . . . . . . . . . . . . . . . . Scanalyzers 2 | . . . . . . . . 1 . . . . . . . . . . . . . . . . . . . 1 . . . . . . . . . . Garrison Access 17 | . . . . . 1 . . 3 . . . . . 2 . . . 2 . . 3 . . . . . . 1 . . . . 3 1 . . 1 . Total Hacks 401 | . 12 . 1 . 16 2 . 50 1 . . . . 29 4 . . 16 . . 60 . 1 3 . 61 . 40 . 4 17 . 28 24 12 7 13 . Successful 184 | . 11 . 1 . 6 1 . 19 1 . . . . 15 4 . . 4 . . 24 . 1 3 . 23 . 16 . 4 17 . 12 10 5 4 3 . Failed 217 | . 1 . . . 10 1 . 31 . . . . . 14 . . . 12 . . 36 . . . . 38 . 24 . . . . 16 14 7 3 10 . Catastrophic 52 | . . . . . 1 1 . 5 . . . . . 1 . . . 1 . . 18 . . . . 5 . 6 . . . . 5 5 . 1 3 . Database Lockouts . | . . . . . . . . . . . . . . . . . . . . . . . . . . . . . . . . . . . . . . . Manual 210 | . 13 . 1 . 12 2 . 25 . . 5 . 1 16 . 1 . 9 . . 33 . . 2 . 30 . 30 . . . . 8 13 3 5 1 . Terminals 303 | . 8 . . . 10 . . 24 . . . . . 22 4 . . 11 . . 56 . . . . 60 . 35 . 4 . . 20 22 12 7 8 . Fabricators 24 | . . . . . . 2 . 14 . . . . . 4 . . . . . . 1 . . . . 1 . 1 . . . . 1 . . . . . Repair Stations 2 | . 1 . . . 1 . . . . . . . . . . . . . . . . . . . . . . . . . . . . . . . . . Recycling Units 4 | . 3 . . . 1 . . . . . . . . . . . . . . . . . . . . . . . . . . . . . . . . . Scanalyzers 8 | . . . . . . . . 6 . . . . . . . . . . . . . . . . . . . 2 . . . . . . . . . . Garrison Access 37 | . . . . . 4 . . 6 . . . . . 3 . . . 5 . . 3 . . . . . . 2 . . . . 7 2 . . 5 . Terminal Hacks 104 | . 2 . 1 . 2 . . 5 1 . . . . 7 4 . . 1 . . 12 . 1 3 . 18 . 4 . 4 17 . 6 7 4 3 2 . Record 11 | . . . . . . . . . . . . . . . . . . . . . . . . 2 . . . . . 4 5 . . . . . . . Part Schematic 6 | . . . . . . . . . . . . . . 1 . . . . . . . . . . . . . . . . 4 . 1 . . . . . Robot Analysis 16 | . 2 . . . 2 . . . . . . . . . . . . . . . 2 . . . . 3 . . . . 4 . . 1 . . 2 . Prototype ID Bank 7 | . . . . . . . . . . . . . . 1 . . . . . . . . . . . 1 . . . . 4 . 1 . . . . . Open Door 8 | . . . . . . . . . 1 . . . . 1 4 . . . . . . . 1 1 . . . . . . . . . . . . . . Level Access Points 3 | . . . . . . . . . . . . . . . . . . . . . . . . . . . . 1 . . . . 1 1 . . . . Branch Access Points 5 | . . . . . . . . 1 . . . . . . . . . . . . 1 . . . . 1 . . . . . . 1 . 1 . . . Emergency Access Points 2 | . . . . . . . . . . . . . . . . . . . . . . . . . . 2 . . . . . . . . . . . . Machine Index 2 | . . . . . . . . . . . . . . . . . . . . . 1 . . . . 1 . . . . . . . . . . . . Terminal Index 6 | . . . . . . . . 1 . . . . . 1 . . . . . . . . . . . . . 1 . . . . 1 1 1 . . . Fabricator Index 3 | . . . . . . . . 1 . . . . . 1 . . . . . . . . . . . 1 . . . . . . . . . . . . Scanalyzer Index 1 | . . . . . . . . . . . . . . . . . . . . . 1 . . . . . . . . . . . . . . . . . Garrison Index 3 | . . . . . . . . . . . . . . . . . . . . . . . . . . . . 1 . . . . 1 . . 1 . . Alert Level 5 | . . . . . . . . . . . . . . . . . . . . . 1 . . . . 2 . 1 . . . . . . . 1 . . Unreport Threat 13 | . . . . . . . . 2 . . . . . 1 . . . . . . 5 . . . . 1 . . . . . . . 3 . 1 . . Disarm Traps 1 | . . . . . . . . . . . . . . . . . . . . . . . . . . 1 . . . . . . . . . . . . Reprogram Traps 1 | . . . . . . . . . . . . . . . . . . . . . . . . . . 1 . . . . . . . . . . . . Investigation Status 1 | . . . . . . . . . . . . . . . . . . . . . . . . . . 1 . . . . . . . . . . . . Assault Status 1 | . . . . . . . . . . . . . . . . . . . . . . . . . . 1 . . . . . . . . . . . . Recall Extermination 1 | . . . . . . . . . . . . . . . . . . . . . 1 . . . . . . . . . . . . . . . . . Hauler Manifests 1 | . . . . . . . . . . . . . . 1 . . . . . . . . . . . . . . . . . . . . . . . . Registered Components 2 | . . . . . . . . . . . . . . . . . . . . . . . . . . 1 . . . . . . . . 1 . . . Registered Prototypes 1 | . . . . . . . . . . . . . . . . . . . . . . . . . . . . . . . . . . . 1 . . . Zone Layout 2 | . . . . . . . . . . . . . . . . . . 1 . . . . . . . 1 . . . . . . . . . . . . Proto ID Catalog 1 | . . . 1 . . . . . . . . . . . . . . . . . . . . . . . . . . . . . . . . . . . Protovariant Controls 1 | . . . . . . . . . . . . . . . . . . . . . . . . . . . . . . . . . . 1 . . . . Fabricator Hacks 3 | . . . . . . . . 1 . . . . . 2 . . . . . . . . . . . . . . . . . . . . . . . . Load Schematic 2 | . . . . . . . . 1 . . . . . 1 . . . . . . . . . . . . . . . . . . . . . . . . Build 1 | . . . . . . . . . . . . . . 1 . . . . . . . . . . . . . . . . . . . . . . . . Repair Station Hacks . | . . . . . . . . . . . . . . . . . . . . . . . . . . . . . . . . . . . . . . . Recycling Unit Hacks . | . . . . . . . . . . . . . . . . . . . . . . . . . . . . . . . . . . . . . . . Scanalyzer 6 | . . . . . . . . 4 . . . . . . . . . . . . . . . . . . . 2 . . . . . . . . . . Insert Component 2 | . . . . . . . . 1 . . . . . . . . . . . . . . . . . . . 1 . . . . . . . . . . Analyze 3 | . . . . . . . . 2 . . . . . . . . . . . . . . . . . . . 1 . . . . . . . . . . Retrieve Study 1 | . . . . . . . . 1 . . . . . . . . . . . . . . . . . . . . . . . . . . . . . . Garrison Access Hacks 15 | . . . . . . . . 3 . . . . . 2 . . . 2 . . 3 . . . . . . 1 . . . . 3 1 . . . . Unlock Access 1 | . . . . . . . . . . . . . . . . . . 1 . . . . . . . . . . . . . . . . . . . . Seal Access 14 | . . . . . . . . 3 . . . . . 2 . . . 1 . . 3 . . . . . . 1 . . . . 3 1 . . . . Unauthorized Hacks 55 | . 8 . . . 4 1 . 6 . . . . . 4 . . . 1 . . 9 . . . . 5 . 9 . . . . 3 2 1 1 1 . Terminals 43 | . 5 . . . 2 . . 5 . . . . . 3 . . . 1 . . 8 . . . . 4 . 8 . . . . 2 2 1 1 1 . Track 1 | . . . . . . . . . . . . . . . . . . . . . . . . . . . . 1 . . . . . . . . . . Assimilate 3 | . . . . . . . . 1 . . . . . . . . . . . . . . . . . . . 2 . . . . . . . . . . Botnet 27 | . . . . . 1 . . 4 . . . . . 2 . . . 1 . . 7 . . . . 2 . 3 . . . . 2 2 1 1 1 . Disrupt 5 | . . . . . 1 . . . . . . . . 1 . . . . . . . . . . . 2 . 1 . . . . . . . . . . Operators 1 | . . . . . . . . . . . . . . . . . . . . . 1 . . . . . . . . . . . . . . . . . Skim 1 | . . . . . . . . . . . . . . . . . . . . . . . . . . . . 1 . . . . . . . . . . Sabotage 5 | . 5 . . . . . . . . . . . . . . . . . . . . . . . . . . . . . . . . . . . . . Fabricators 7 | . . . . . . 1 . 1 . . . . . 1 . . . . . . 1 . . . . 1 . 1 . . . . 1 . . . . . Haulers 7 | . . . . . . 1 . 1 . . . . . 1 . . . . . . 1 . . . . 1 . 1 . . . . 1 . . . . . Repair Stations 2 | . 1 . . . 1 . . . . . . . . . . . . . . . . . . . . . . . . . . . . . . . . . Patch 2 | . 1 . . . 1 . . . . . . . . . . . . . . . . . . . . . . . . . . . . . . . . . Recycling Units 3 | . 2 . . . 1 . . . . . . . . . . . . . . . . . . . . . . . . . . . . . . . . . Tunnel 3 | . 2 . . . 1 . . . . . . . . . . . . . . . . . . . . . . . . . . . . . . . . . Scanalyzers . | . . . . . . . . . . . . . . . . . . . . . . . . . . . . . . . . . . . . . . . Garrison Access . | . . . . . . . . . . . . . . . . . . . . . . . . . . . . . . . . . . . . . . . Data Cores Recovered 9 | . . . . . . . . 2 . . . . . 1 . . . 1 . . 1 . . . . 2 . 1 . . . . . 1 . . . . Used 6 | . . . . . . . . 2 . . . . . . . . . . . . 1 . . . . 1 . 1 . . . . . 1 . . . . Hacking Detections 66 | . . . . . 4 1 . 15 . . . . . 8 1 . . 6 . . 8 . . . . 6 . 3 . 1 . . 6 3 2 . 2 . Full Trace Events 13 | . . . . . 2 1 . 5 . . . . . 5 . . . . . . . . . . . . . . . . . . . . . . . . Feedback Events . | . . . . . . . . . . . . . . . . . . . . . . . . . . . . . . . . . . . . . . . Feedback Blocked . | . . . . . . . . . . . . . . . . . . . . . . . . . . . . . . . . . . . . . . . Robot Schematics Acquired 4 | . . . . . . . . . . . . . . . . . . . . . . . . . . . . . . . . . . . . 1 3 . Robots Built . | . . . . . . . . . . . . . . . . . . . . . . . . . . . . . . . . . . . . . . . Authchips . | . . . . . . . . . . . . . . . . . . . . . . . . . . . . . . . . . . . . . . . Time . | . . . . . . . . . . . . . . . . . . . . . . . . . . . . . . . . . . . . . . . Total Robot Build Rating . | . . . . . . . . . . . . . . . . . . . . . . . . . . . . . . . . . . . . . . . Part Schematics Acquired 20 | . . . . . . . . 1 . . . . . 1 . . . . . . . . . . . . . 1 . . 4 . 1 . . 4 8 . Parts Built 2 | . . . . . . . . . . . . . . 2 . . . . . . . . . . . . . . . . . . . . . . . . Authchips . | . . . . . . . . . . . . . . . . . . . . . . . . . . . . . . . . . . . . . . . Time 47 | . . . . . . . . . . . . . . 47 . . . . . . . . . . . . . . . . . . . . . . . . Total Part Build Rating 10 | . . . . . . . . . . . . . . 10 . . . . . . . . . . . . . . . . . . . . . . . . Part Studies Acquired . | . . . . . . . . . . . . . . . . . . . . . . . . . . . . . . . . . . . . . . . Parts Repaired . | . . . . . . . . . . . . . . . . . . . . . . . . . . . . . . . . . . . . . . . Time . | . . . . . . . . . . . . . . . . . . . . . . . . . . . . . . . . . . . . . . . Parts Recycled . | . . . . . . . . . . . . . . . . . . . . . . . . . . . . . . . . . . . . . . . Recycled Matter . | . . . . . . . . . . . . . . . . . . . . . . . . . . . . . . . . . . . . . . . Retrieved Matter . | . . . . . . . . . . . . . . . . . . . . . . . . . . . . . . . . . . . . . . . Retrieved Components . | . . . . . . . . . . . . . . . . . . . . . . . . . . . . . . . . . . . . . . . Parts Scanalyzed 2 | . . . . . . . . 1 . . . . . . . . . . . . . . . . . . . 1 . . . . . . . . . . Part Schematics Acquired 2 | . . . . . . . . 1 . . . . . . . . . . . . . . . . . . . 1 . . . . . . . . . . Parts Damaged 1 | . . . . . . . . . . . . . . . . . . . . . . . . . . . . 1 . . . . . . . . . . Bothacking | -11 -10 -10 -10 -9 -8 -7 -7 -7 -7 -7 -7 -7 -6 -6 -6 -6 -6 -6 -5 -5 -5 -5 -5 -5 -4 -4 -4 -4 -4 -4 -4 -3 -3 -3 -2 -2 -2 -1 ------------ Run | Yrd Mat Min Exi Min Mat Fac Was Fac Low Low Zio Dee Pro Fac Ext Cet Arc Hub Fac Was Fac Upp Upp War Pro Fac Was Fac Upp Upp Zhi Pro Res Tes Res Qua Frg Acc Used RIF Installer . | . . . . . . . . . . . . . . . . . . . . . . . . . . . . . . . . . . . . . . . Robots Hacked . | . . . . . . . . . . . . . . . . . . . . . . . . . . . . . . . . . . . . . . . Non-combat . | . . . . . . . . . . . . . . . . . . . . . . . . . . . . . . . . . . . . . . . Combat . | . . . . . . . . . . . . . . . . . . . . . . . . . . . . . . . . . . . . . . . Robot Hacks Applied . | . . . . . . . . . . . . . . . . . . . . . . . . . . . . . . . . . . . . . . . Relay Couplers Released 5 | . . . . . 1 1 . 1 . . . . . . . . . . . . . . . . . . . . . . . . . . 1 . . 1 Machine Destruction 4 | . . . . . 1 1 . . . . . . . . . . . . . . . . . . . . . . . . . . . . 1 . . 1 Programmers 1 | . . . . . . . . 1 . . . . . . . . . . . . . . . . . . . . . . . . . . . . . . Fabnet Peak Effective % . | . . . . . . . . . . . . . . . . . . . . . . . . . . . . . . . . . . . . . . . Robots Rewired 21 | . . . . . . . . . . . . . . . 13 . . . . . . 2 2 . . . . . 2 . . 2 . . . . . . Allies Hacked 2 | . . . . . . . . . . . . . . . . . . . . . . . . 2 . . . . . . . . . . . . . . Hacks Repelled . | . . . . . . . . . . . . . . . . . . . . . . . . . . . . . . . . . . . . . . . Allies | -11 -10 -10 -10 -9 -8 -7 -7 -7 -7 -7 -7 -7 -6 -6 -6 -6 -6 -6 -5 -5 -5 -5 -5 -5 -4 -4 -4 -4 -4 -4 -4 -3 -3 -3 -2 -2 -2 -1 -------- Run | Yrd Mat Min Exi Min Mat Fac Was Fac Low Low Zio Dee Pro Fac Ext Cet Arc Hub Fac Was Fac Upp Upp War Pro Fac Was Fac Upp Upp Zhi Pro Res Tes Res Qua Frg Acc Total Allies 76 | . . . . . . . 18 . . . 4 . . . 19 5 . . . 20 . 2 2 . . . . 2 2 . . 2 . . . . . . Largest Group 21 | . . . . . . . 18 16 . . 4 4 . . 16 6 6 5 1 21 21 2 3 3 . . . 1 2 2 1 2 2 . . . . . Highest-Rated Group 854 | . . . . . . . 434 406 . . 97 97 . . 599 639 639 480 96 854 854 78 124 124 . . . 45 79 79 49 94 94 . . . . . Highest-Rated Ally 159 | . . . . . . . 35 35 . . 32 32 . . 159 159 159 96 96 96 96 49 49 49 . . . 45 49 49 49 47 47 . . . . . Total Orders 3 | . . . . . . . . . . . . . . . . 1 . 2 . . . . . . . . . . . . . . . . . . . . STAY 2 | . . . . . . . . . . . . . . . . 1 . 1 . . . . . . . . . . . . . . . . . . . . FOLLOW 1 | . . . . . . . . . . . . . . . . . . 1 . . . . . . . . . . . . . . . . . . . . Ally Attacks 526 | . . . . . . . 26 106 . . . 22 . . 69 16 7 84 . . 152 . 9 22 . . . . . 1 2 . 10 . . . . . Total Damage 13014 | . . . . . . . 545 1483 . . . 225 . . 1349 424 282 3211 . . 4270 . 164 807 . . . . . 25 48 . 181 . . . . . Kills 96 | . . . . . . . 2 17 . . . 3 . . 15 2 1 21 . . 31 . 1 1 . . . . . . . . 2 . . . . . Allies Corrupted 9 | . . . . . . . . 1 . . . . . . . . . . . . 8 . . . . . . . . . . . . . . . . . Allies Melted 1 | . . . . . . . . . . . . . . . . . . . . . . . . . . . . . . . . . . . 1 . . . Intel | -11 -10 -10 -10 -9 -8 -7 -7 -7 -7 -7 -7 -7 -6 -6 -6 -6 -6 -6 -5 -5 -5 -5 -5 -5 -4 -4 -4 -4 -4 -4 -4 -3 -3 -3 -2 -2 -2 -1 ------- Run | Yrd Mat Min Exi Min Mat Fac Was Fac Low Low Zio Dee Pro Fac Ext Cet Arc Hub Fac Was Fac Upp Upp War Pro Fac Was Fac Upp Upp Zhi Pro Res Tes Res Qua Frg Acc Active Infowar (turns) 22624 | 40 1146 506 864 413 1113 250 75 . . . . . . 123 . . . . . . 1767 564 702 2590 518 463 129 1120 680 719 167 497 897 1330 790 348 3326 1487 Sensors 2 | . . . 2 . . . . . . . . . . . . . . . . . . . . . . . . . . . . . . . . . . . IFF 17435 | . . . . . . . . . . . . . . . . . . . . . 1340 564 702 2590 518 389 129 962 680 719 167 497 897 1330 790 348 3326 1487 Terrain 1901 | . . . 58 410 1108 250 75 . . . . . . . . . . . . . . . . . . . . . . . . . . . . . . . Seismic 3436 | 40 1146 506 864 412 468 . . . . . . . . . . . . . . . . . . . . . . . . . . . . . . . . . Triangulation 1624 | . . . . . . . . . . . . . . 123 . . . . . . 1269 . . . . 74 . 158 . . . . . . . . . . Jamming 1 | . . . . . . . . . . . . . . . . . . . . . . . . . . . . . . . . . . . . . 1 . ECM 3 | . . . . . . . . . . . . . . . . . . . . . . . . . . . . . . . . . . 1 . . 2 . ID Mask 45 | . . . . . . . . . . . . . . . . . . . . . 45 . . . . . . . . . . . . . . . . . Robot Analysis Total 16 | . 2 . . . 2 . . . . . . . . . . . . . . . 2 . . . . 3 . . . . 4 . . 1 . . 2 . Derelict Logs Recovered 21 | . . 2 . 2 . . . . 1 2 2 . 3 . . . . . . . . 1 1 . 2 . . . 3 2 . . . . . . . . Drone Launches . | . . . . . . . . . . . . . . . . . . . . . . . . . . . . . . . . . . . . . . . Drone Recoveries . | . . . . . . . . . . . . . . . . . . . . . . . . . . . . . . . . . . . . . . . Exploration | -11 -10 -10 -10 -9 -8 -7 -7 -7 -7 -7 -7 -7 -6 -6 -6 -6 -6 -6 -5 -5 -5 -5 -5 -5 -4 -4 -4 -4 -4 -4 -4 -3 -3 -3 -2 -2 -2 -1 ------------- Run | Yrd Mat Min Exi Min Mat Fac Was Fac Low Low Zio Dee Pro Fac Ext Cet Arc Hub Fac Was Fac Upp Upp War Pro Fac Was Fac Upp Upp Zhi Pro Res Tes Res Qua Frg Acc Turns Passed 31316 | 99 1146 506 864 422 1113 250 322 2607 526 430 487 693 602 1428 427 406 98 490 10 187 1876 564 702 2590 518 463 129 1120 680 719 167 497 897 1330 790 348 3326 1487 Spaces Moved 38325 | 77 1102 738 938 665 1130 285 383 3531 1086 921 715 976 1054 1999 445 378 53 727 26 316 2275 860 967 2556 918 584 189 1306 923 940 210 722 1383 1450 940 456 2850 1251 Core 4 | 4 . . . . . . . . . . . . . . . . . . . . . . . . . . . . . . . . . . . . . . Treads . | . . . . . . . . . . . . . . . . . . . . . . . . . . . . . . . . . . . . . . . Legs . | . . . . . . . . . . . . . . . . . . . . . . . . . . . . . . . . . . . . . . . Wheels 323 | 73 250 . . . . . . . . . . . . . . . . . . . . . . . . . . . . . . . . . . . . . Hover 37998 | . 852 738 938 665 1130 285 383 3531 1086 921 715 976 1054 1999 445 378 53 727 26 316 2275 860 967 2556 918 584 189 1306 923 940 210 722 1383 1450 940 456 2850 1251 Flight . | . . . . . . . . . . . . . . . . . . . . . . . . . . . . . . . . . . . . . . . Fastest Speed 24 | 50 48 48 48 55 55 50 50 40 44 44 44 44 44 33 38 24 38 38 38 38 24 45 52 40 52 40 52 40 52 52 52 52 40 52 40 48 36 56 Average Speed 49 | 78 58 48 49 55 55 52 50 45 44 44 44 44 44 42 38 37 38 38 38 38 50 49 52 51 52 51 52 51 52 52 52 52 51 52 50 50 51 56 Slowest Speed 125 | 80 125 48 55 55 55 55 50 115 44 44 44 48 44 44 38 38 38 38 38 38 66 61 52 61 52 52 52 52 52 52 52 52 52 52 52 52 56 56 Overloaded Moves 1032 | . . . . . . . . . . . . . . 30 . 5 . . . . 48 384 . 87 . 7 . 70 . . . . 16 . 87 . 298 . Propulsion Burnouts . | . . . . . . . . . . . . . . . . . . . . . . . . . . . . . . . . . . . . . . . Robots Hopped . | . . . . . . . . . . . . . . . . . . . . . . . . . . . . . . . . . . . . . . . Potential Cave-ins . | . . . . . . . . . . . . . . . . . . . . . . . . . . . . . . . . . . . . . . . Cave-ins Triggered . | . . . . . . . . . . . . . . . . . . . . . . . . . . . . . . . . . . . . . . . Exploration Rate (%) 74 | 3 94 98 89 97 83 9 95 83 98 97 84 85 90 62 77 65 71 87 2 96 46 92 97 91 98 24 98 46 95 91 97 92 52 97 53 54 77 34 Regions Visited 38 Branch Regions 23 Pre-discovered Areas 12 | . 2 . . 1 1 . . . . . 1 . . . . . . . . . . . . . 1 . . . 2 1 3 . . . . . . . Known Exits Taken 16 | . . . . . 1 . . 1 . 1 1 1 1 1 . . . 1 . . 1 1 . . . . . 1 . 1 . 1 1 1 1 . . . Unknown Exits Taken 16 | 1 1 1 1 1 . . . . 1 . . . . . 1 1 1 . . . . . 1 1 1 . . . 1 . 1 . . . . 1 1 . Scrap Searched 38 | . . 2 . 1 . . . . 4 5 4 . 3 . . . . . . . . 5 4 . 3 . . . 3 3 . 1 . . . . . . Spaces Dug 19 | . . . . . . . . . . . . . . 1 . . . . . . 4 1 . 1 . . . 1 . . . 5 2 2 . . . 2 Terrain Destroyed 2058 | . . . 1 4 91 5 . 152 13 1 . 8 10 130 12 5 4 605 . . 171 7 8 219 7 26 8 198 13 33 8 25 38 40 56 17 81 62 Melee 1 | . . . . . . . . . . . . . . . . . . . . . . . . 1 . . . . . . . . . . . . . . Projectile 831 | . . . 1 3 61 4 . 30 13 . . 6 2 52 12 4 3 23 . . 62 5 8 119 7 26 8 82 13 32 8 24 38 38 52 17 43 35 AOE 1111 | . . . . . 28 . . 103 . . . . . 69 . . . 580 . . 96 . . 92 . . . 116 . . . . . . . . 27 . Terrain Rammed . | . . . . . . . . . . . . . . . . . . . . . . . . . . . . . . . . . . . . . . . Walls Destroyed . | . . . . . . . . . . . . . . . . . . . . . . . . . . . . . . . . . . . . . . . Machines Disabled . | . . . . . . . . . . . . . . . . . . . . . . . . . . . . . . . . . . . . . . . Actions | -11 -10 -10 -10 -9 -8 -7 -7 -7 -7 -7 -7 -7 -6 -6 -6 -6 -6 -6 -5 -5 -5 -5 -5 -5 -4 -4 -4 -4 -4 -4 -4 -3 -3 -3 -2 -2 -2 -1 --------- Run | Yrd Mat Min Exi Min Mat Fac Was Fac Low Low Zio Dee Pro Fac Ext Cet Arc Hub Fac Was Fac Upp Upp War Pro Fac Was Fac Upp Upp Zhi Pro Res Tes Res Qua Frg Acc Total 46889 | 93 1499 839 1192 715 1509 345 485 4228 1122 934 886 1178 1140 2398 656 616 117 871 26 382 2711 976 1140 3443 938 697 209 1583 1088 1111 252 803 1503 1893 1115 545 4021 1630 Wait 3524 | . 230 49 102 22 75 9 64 183 3 . 172 85 11 117 54 212 44 32 . 64 44 77 134 332 . 55 . 71 124 114 22 14 51 296 28 39 542 53 Move 38289 | 76 1101 737 937 664 1129 285 382 3530 1085 920 714 975 1053 1998 444 377 52 726 26 315 2274 859 966 2555 917 584 188 1305 922 939 209 721 1382 1449 939 455 2849 1250 Hop . | . . . . . . . . . . . . . . . . . . . . . . . . . . . . . . . . . . . . . . . Pick Up 88 | . 12 3 9 1 2 . . 8 . . . . 6 6 1 . . . . . 8 1 . 6 . . . 5 1 . 1 . 1 3 . 3 10 1 Fast Attach 85 | 6 7 1 8 2 9 . 3 9 . . . 2 2 2 . . . . . . 5 . . 13 . . . . . . 1 . 1 4 . 5 4 1 Attach 28 | . 3 . . 3 1 . 1 5 . . . . 2 . 1 . . . . . 2 1 . . . . . . . . . . . 3 . 3 3 . Detach 12 | . . . 1 3 1 . 1 5 . . . . . . . . . . . . . . . . . . . . . . . . . 1 . . . . Swap 166 | 2 9 1 10 . 5 2 . 12 . 1 . 22 1 20 1 . 2 . . . 3 . 1 12 . 5 . 4 . . 3 . . 14 . 4 31 1 Drop 163 | . 15 3 16 4 10 . 5 18 . . . 5 7 9 . . . . . . 12 . . 19 . 1 . 5 1 . 2 . . 7 . 7 16 1 Fire 2610 | 9 80 26 97 16 172 32 23 338 9 8 . 25 27 127 36 19 9 55 . . 228 19 20 331 10 23 5 86 18 29 7 20 29 68 68 12 332 197 Melee 22 | . . . . . . . . . . . . . . . . . . . . . . . . 6 . . . . . . . . . 1 . . 7 8 Ram . | . . . . . . . . . . . . . . . . . . . . . . . . . . . . . . . . . . . . . . . Kick . | . . . . . . . . . . . . . . . . . . . . . . . . . . . . . . . . . . . . . . . Crush . | . . . . . . . . . . . . . . . . . . . . . . . . . . . . . . . . . . . . . . . Escape Stasis 159 | . . . . . . . . 10 . . . . . 13 51 . . 13 . . . . . . . 26 . 4 . . . . . . . . 35 7 Rewire 76 | . . . . . . . . . . . . . . . 46 . . . . . . 11 8 . . . . . 3 . . 8 . . . . . . Trap 1 | . . . . . . . . . . . . . . . . . . . . . . . . . . . . . . . . . . . . . 1 . Miscellaneous 1666 | . 42 19 12 . 105 17 6 110 25 5 . 64 31 106 22 8 10 45 . 3 135 8 11 169 11 3 16 103 19 29 7 40 39 47 80 17 191 111 Route ------- -11/Scrapyard -10/Materials (discovered 5 exits: [*Mat x3] / [*Min x2]) -10/Mines (discovered 4 exits: [*Mat x2] / *Exi / [*Sub]) -10/Exiles (discovered 2 exits: [*Min x2]) -9/Mines (discovered 2 exits: *Mat x2) -8/Materials (discovered 3 exits: *Fac x3) -7/Factory -7/Waste -7/Factory (discovered 7 exits: *Fac x3 / *Sto x2 / *Low x2) -7/Lower Caves -7/Lower Caves (discovered 2 exits: *Fac / *Zio) -7/Zion (discovered 2 exits: *Dee / [*Pro]) -7/Deep Caves -6/Proximity Caves -6/Factory (discovered 7 exits: *Fac x3 / *Low x2 / *Ext x2) -6/Extension (discovered 2 exits: *Fac / *Cet) -6/Cetus (discovered 3 exits: *Fac x2 / [*Arc]) -6/Archives (discovered 2 exits: *Hub x2) -6/Hub_04(d) (discovered 3 exits: *Fac x3) -5/Factory -5/Waste -5/Factory (discovered 4 exits: *Fac x2 / *Upp x2) -5/Upper Caves -5/Upper Caves (discovered 2 exits: *Fac / *War) -5/Warlord -4/Proximity Caves -4/Factory (discovered 3 exits: *Upp x2 / Arm) -4/Waste -4/Factory (discovered 5 exits: *Res x4 / *Upp) -4/Upper Caves -4/Upper Caves (discovered 2 exits: *Res / *Zhi) -4/Zhirov -3/Proximity Caves -3/Research (discovered 5 exits: *Res x3 / *Tes x2) -3/Testing -2/Research (discovered 4 exits: [*Acc x2] / *Qua x2) -2/Quarantine (discovered 2 exits: [*Sec] / *Frg) -2/Protoforge -1/Access To Epsilon Eridani History --------- Turn | Location | Event 1 | -11/Scrapyard | Upgraded with Propulsion slot (x1) 1 | -11/Scrapyard | Upgraded with Utility slot (x1) 1 | -11/Scrapyard | Upgraded with Weapon slot (x1) 19 | -11/Scrapyard | Discovered new exit (range 15) 100 | -11/Scrapyard | Entered Materials 242 | -10/Materials | Discovered new exit (range 15) 312 | -10/Materials | Discovered new exit (range 12) 313 | -10/Materials | Build established: Mutant 462 | -10/Materials | Reached level 2 620 | -10/Materials | Reached level 3 621 | -10/Materials | Upgraded with Propulsion slot (x1) 621 | -10/Materials | Upgraded with Utility slot (x1) 821 | -10/Materials | Discovered new exit (range 16) 977 | -10/Materials | Reached level 4 977 | -10/Materials | Upgraded with Propulsion slot (x1) 977 | -10/Materials | Upgraded with Utility slot (x1) 1055 | -10/Materials | Discovered new exit (range 15) 1235 | -10/Materials | Discovered new exit (range 15) 1246 | -10/Materials | Entered Mines 1248 | -10/Mines | Reached level 5 1276 | -10/Mines | Deemed a non-threat by the Exiles lab entrance 1277 | -10/Mines | Discovered new exit (range 5) 1357 | -10/Mines | Learned Materials stockpile data 1384 | -10/Mines | Discovered new exit (range 6) 1430 | -10/Mines | Learned 4 Materials zone layouts 1437 | -10/Mines | A weapon hastily lodged in a ceiling crevice suddenly fell to the ground 1518 | -10/Mines | Discovered new exit (range 13) 1565 | -10/Mines | Upgraded with Weapon slot (x1) 1677 | -10/Mines | Found a damaged Exp. Sensor Array with a note attached 1680 | -10/Mines | Found Prototype Device 1708 | -10/Mines | Discovered new exit (range 5) 1752 | -10/Mines | Entered Exiles 1765 | -10/Exiles | Met 8R-AWN 1772 | -10/Exiles | Met EX-HEX 1792 | -10/Exiles | Met EX-DEC 1862 | -10/Exiles | Met EX-BIN 1868 | -10/Exiles | Aligned with FarCom system 1869 | -10/Exiles | Given EX-Vault access code 1880 | -10/Exiles | Opened EX-Vault 1892 | -10/Exiles | Warned to stay clear of 0b10 Research branches 1930 | -10/Exiles | Discovered new exit (range 14) 1999 | -10/Exiles | Attacked by the Exiles 2100 | -10/Exiles | Core integrity fell below 50% 2123 | -10/Exiles | Core integrity fell below 20% 2182 | -10/Exiles | Lost 3 parts (3u) 2225 | -10/Exiles | Destroyed 8R-AWN 2244 | -10/Exiles | Found Prototype Ballistic Gun 2244 | -10/Exiles | Identified 8R-AWN's Boregun 2246 | -10/Exiles | Found 8R-AWN's Boregun 2279 | -10/Exiles | Identified Exp. Sensor Array 2332 | -10/Exiles | Destroyed EX-DEC 2348 | -10/Exiles | Destroyed EX-BIN 2376 | -10/Exiles | Destroyed EX-HEX 2388 | -10/Exiles | Found Prototype Device 2388 | -10/Exiles | Identified System Purifier 2542 | -10/Exiles | Build established: Scavenger-Gunner 2609 | -10/Exiles | Discovered new exit (range 14) 2616 | -10/Exiles | Entered Mines 2618 | -9/Mines | Reached level 6 2619 | -9/Mines | Learned Materials emergency access door positions 2630 | -9/Mines | Found a Scrap Suit stashed away for nefarious purposes 2634 | -9/Mines | Learned Materials trap positions 2658 | -9/Mines | Found Scrap Suit 2803 | -9/Mines | Discovered new exit (range 13) 2853 | -9/Mines | Received a Rocket Launcher from a helpful Derelict 2904 | -9/Mines | Learned location of Storage (-7) 3016 | -9/Mines | Discovered new exit (range 8) 3038 | -9/Mines | Entered Materials 3039 | -8/Materials | Identified exit to Factory 3039 | -8/Materials | Core integrity fell below 50% 3040 | -8/Materials | Loaded intel: 19 trap records 3040 | -8/Materials | Reached level 7 3045 | -8/Materials | Upgraded with Utility slot (x1) 3079 | -8/Materials | Core integrity fell below 20% 3151 | -8/Materials | Reached level 8 3184 | -8/Materials | Reached level 9 3221 | -8/Materials | Destroyed 8 combat bots 3230 | -8/Materials | Upgraded with Power slot (x1) 3230 | -8/Materials | Upgraded with Utility slot (x1) 3413 | -8/Materials | Reached level 10 3530 | -8/Materials | Discovered exit to Factory (range 16) 3545 | -8/Materials | Reached level 11 3613 | -8/Materials | Destroyed 8 combat bots 3649 | -8/Materials | Upgraded with Utility slot (x1) 3675 | -8/Materials | Discovered exit to Factory (range 14) 3838 | -8/Materials | First assault squad dispatched 3851 | -8/Materials | Reached level 12 3966 | -8/Materials | Sterilization system engaged 3966 | -8/Materials | Non-combat units ordered to evacuate 4017 | -8/Materials | Destroyed 10 combat bots 4035 | -8/Materials | Build established: Scavenger-Mutant 4066 | -8/Materials | Combat units ordered to evacuate 4151 | -8/Materials | Entered Factory 4153 | -7/Factory | Reached level 13 4254 | -7/Factory | Garrison activated, responded to threat 4268 | -7/Factory | Reached level 14 4365 | -7/Factory | Reached level 15 4395 | -7/Factory | Destroyed 13 combat bots 4401 | -7/Factory | Sucked down chute 4401 | -7/Factory | Entered Waste 4421 | -7/Waste | Spotted C-40 Crusher 4434 | -7/Waste | Spotted C-40 Crusher 4443 | -7/Waste | Spotted C-40 Crusher 4446 | -7/Waste | Destroyed C-40 Crusher 4449 | -7/Waste | Destroyed C-40 Crusher 4452 | -7/Waste | Spotted C-40 Crusher 4455 | -7/Waste | Spotted C-40 Crusher 4470 | -7/Waste | Destroyed C-40 Crusher 4479 | -7/Waste | Found Damper Plating 4492 | -7/Waste | Destroyed C-40 Crusher 4502 | -7/Waste | Destroyed C-40 Crusher 4532 | -7/Waste | Spotted C-40 Crusher 4545 | -7/Waste | Discovered new exit (range 14) 4569 | -7/Waste | Warlord forces began an assault 4606 | -7/Waste | Destroyed C-40 Crusher 4723 | -7/Waste | Entered Factory 4723 | -7/Factory | Accompanied by 16 allies 4763 | -7/Factory | Discovered new exit (range 14) 4775 | -7/Factory | Discovered new exit (range 15) 4811 | -7/Factory | Reached level 16 4899 | -7/Factory | Upgraded with Propulsion slot (x1) 4920 | -7/Factory | Discovered new exit (range 19) 5035 | -7/Factory | Lost 3 allies 5098 | -7/Factory | Discovered new exit (range 12) 5151 | -7/Factory | Discovered new exit (range 10) 5167 | -7/Factory | Build established: Scavenger-Gunner 5170 | -7/Factory | Lost 3 allies 5241 | -7/Factory | Reached level 17 5523 | -7/Factory | First assault squad dispatched 6113 | -7/Factory | Discovered new exit (range 7) 6140 | -7/Factory | Identified exit to Storage 6140 | -7/Factory | Identified exit to Lower Caves 6302 | -7/Factory | Cargo convoy interrupted 6354 | -7/Factory | Found Prototype Processor 6354 | -7/Factory | Identified Exp. Signal Interpreter 6375 | -7/Factory | Found Prototype Launcher 6375 | -7/Factory | Identified Mni. Smartbomb Launcher 6405 | -7/Factory | Garrison activated, responded to threat 6476 | -7/Factory | High security lockdown imminent 6519 | -7/Factory | Destroyed 14 combat bots 6551 | -7/Factory | Reached level 18 6556 | -7/Factory | High security lockdown engaged 6618 | -7/Factory | Destroyed 9 combat bots 6704 | -7/Factory | Build established: Scavenger-Mutant 6707 | -7/Factory | Upgraded with Weapon slot (x1) 6770 | -7/Factory | Destroyed 23 combat bots 7009 | -7/Factory | Destroyed 13 combat bots 7014 | -7/Factory | Build established: Scavenger-Gunner 7037 | -7/Factory | Sterilization system engaged 7037 | -7/Factory | Non-combat units ordered to evacuate 7079 | -7/Factory | Reached level 19 7137 | -7/Factory | Combat units ordered to evacuate 7162 | -7/Factory | Destroyed 23 combat bots 7216 | -7/Factory | Destroyed 7 combat bots 7260 | -7/Factory | Upgraded with Weapon slot (x1) 7316 | -7/Factory | Found Exp. Signal Interpreter 7330 | -7/Factory | Entered Lower Caves 7380 | -7/Lower Caves | Destroyed 8 combat bots 7550 | -7/Lower Caves | Encountered a Warlord checkpoint 7604 | -7/Lower Caves | Discovered new exit (range 12) 7856 | -7/Lower Caves | Entered another Lower Caves area 7861 | -7/Lower Caves | Learned Factory stockpile data 7875 | -7/Lower Caves | Discovered new exit (range 10) 8141 | -7/Lower Caves | Learned Factory stockpile data 8237 | -7/Lower Caves | Discovered new exit (range 3) 8285 | -7/Lower Caves | Identified exit to Zion 8286 | -7/Lower Caves | Entered Zion 8328 | -7/Zion | Discovered new exit (range 14) 8377 | -7/Zion | Learned Factory stockpile data 8380 | -7/Zion | Learned location of 1 exit from Factory 8398 | -7/Zion | Gained Derelict followers 8416 | -7/Zion | Received a hallucinogenic algorithm 8416 | -7/Zion | Ran a hallucination algorithm 8475 | -7/Zion | Learned location of Warlord (-5) 8489 | -7/Zion | Acquired unknown access codes intercepted by a Zionite 8592 | -7/Zion | Opened final containment barrier to the Deep Caves 8599 | -7/Zion | Discovered new exit (range 3) 8599 | -7/Zion | Saw the warning signs outside the Deep Caves entrance 8599 | -7/Zion | Identified exit to Deep Caves 8773 | -7/Zion | Entered Deep Caves 8773 | -7/Deep Caves | Accompanied by 4 allies 8911 | -7/Deep Caves | Attacked by Z-Imprinter 8934 | -7/Deep Caves | Destroyed Z-Imprinter 8961 | -7/Deep Caves | Lost 4 allies 8990 | -7/Deep Caves | Found Prototype Protection 8990 | -7/Deep Caves | Identified Zio. Weapon Casing 9099 | -7/Deep Caves | Found Prototype Protection 9099 | -7/Deep Caves | Identified Zio. Heavy Carapace 9350 | -7/Deep Caves | Spotted AG-42291 9357 | -7/Deep Caves | Spotted AG-60603 9464 | -7/Deep Caves | Discovered new exit (range 6) 9466 | -7/Deep Caves | Identified exit to Proximity Caves 9466 | -7/Deep Caves | Entered Proximity Caves 9512 | -6/Proximity Caves | Learned location of 1 exit from Lower Caves 9513 | -6/Proximity Caves | Learned 12 Factory zone layouts 9571 | -6/Proximity Caves | Spotted B-75 Beast 9578 | -6/Proximity Caves | Destroyed B-75 Beast 9631 | -6/Proximity Caves | Acquired the password to a Derelict Tinkerer's latest research 9633 | -6/Proximity Caves | Found Prototype Special Weapon 9633 | -6/Proximity Caves | Identified Molecular Deconstructor 9711 | -6/Proximity Caves | Caught by Unaware searching for contraband prototypes 9751 | -6/Proximity Caves | Reached level 20 9767 | -6/Proximity Caves | Discovered new exit (range 4) 9769 | -6/Proximity Caves | Identified exit to Factory 10068 | -6/Proximity Caves | Entered Factory 10069 | -6/Factory | Identified exit to Extension 10070 | -6/Factory | Identified exit to Lower Caves 10071 | -6/Factory | Identified exit to Factory 10157 | -6/Factory | Discovered exit to Factory (range 11) 10271 | -6/Factory | Unchained authorized (QV-33N) 10460 | -6/Factory | Fabricated Triangulator (x2) 10587 | -6/Factory | Garrison activated, responded to threat 10592 | -6/Factory | Destroyed 9 combat bots 10728 | -6/Factory | Reached level 21 10922 | -6/Factory | Destroyed 7 combat bots 10922 | -6/Factory | Discovered exit to Factory (range 5) 11002 | -6/Factory | Discovered exit to Lower Caves (range 13) 11102 | -6/Factory | Garrison activated, responded to threat 11103 | -6/Factory | Cargo convoy interrupted 11163 | -6/Factory | Destroyed 14 combat bots 11228 | -6/Factory | Found Prototype Device 11228 | -6/Factory | Identified Adv. Kinecellerator 11247 | -6/Factory | Found Prototype Protection 11247 | -6/Factory | Identified Active Cooling Armor 11277 | -6/Factory | Spotted B-75 Beast 11300 | -6/Factory | Destroyed B-75 Beast 11365 | -6/Factory | Destroyed 7 combat bots 11468 | -6/Factory | First assault squad dispatched 11496 | -6/Factory | Entered Extension 11512 | -6/Extension | Rescued A7 11512 | -6/Extension | Rescued a captive Derelict 11514 | -6/Extension | Rescued a captive Derelict 11633 | -6/Extension | Reached level 22 11662 | -6/Extension | Spotted B-75 Beast 11662 | -6/Extension | Upgraded with Utility slot (x1) 11697 | -6/Extension | Destroyed B-75 Beast 11701 | -6/Extension | Spotted B-75 Beast 11710 | -6/Extension | Destroyed B-75 Beast 11722 | -6/Extension | Rescued a captive Derelict 11776 | -6/Extension | Rescued a captive Derelict 11777 | -6/Extension | Rescued a captive Derelict 11822 | -6/Extension | High security lockdown imminent 11867 | -6/Extension | Discovered exit to Factory (range 10) 11867 | -6/Extension | Discovered new exit (range 6) 11902 | -6/Extension | High security lockdown engaged 11923 | -6/Extension | Entered Cetus 11923 | -6/Cetus | Accompanied by 3 allies (A7) 11928 | -6/Cetus | Acquired a Cetus Manufacturing Module code from A7 11929 | -6/Cetus | Spotted Cetus Guard 11929 | -6/Cetus | Spotted Cetus Guard 11930 | -6/Cetus | Spotted Cetus Guard 11937 | -6/Cetus | Spotted Cetus Guard 11939 | -6/Cetus | Destroyed Cetus Guard 11945 | -6/Cetus | Allies destroyed Cetus Guard 11954 | -6/Cetus | Destroyed Cetus Guard 11956 | -6/Cetus | Destroyed Cetus Guard 11981 | -6/Cetus | Lost 3 allies 11985 | -6/Cetus | Started Cetus Manufacturing Module 12010 | -6/Cetus | Manufactured an Enhanced Grunt 12035 | -6/Cetus | Manufactured an Enhanced Grunt 12060 | -6/Cetus | Manufactured an Enhanced Grunt 12085 | -6/Cetus | Manufactured an Enhanced Grunt 12110 | -6/Cetus | Manufactured an Enhanced Grunt 12156 | -6/Cetus | Discovered new exit (range 20) 12201 | -6/Cetus | Spotted Cetus Guard 12201 | -6/Cetus | Spotted Cetus Guard 12202 | -6/Cetus | Spotted Cetus Guard 12204 | -6/Cetus | Spotted Cetus Guard 12204 | -6/Cetus | Discovered exit to Factory (range 20) 12206 | -6/Cetus | Destroyed Cetus Guard 12208 | -6/Cetus | Destroyed Cetus Guard 12211 | -6/Cetus | Destroyed Cetus Guard 12215 | -6/Cetus | Destroyed Cetus Guard 12216 | -6/Cetus | Build established: Scavenger-Tank 12270 | -6/Cetus | Discovered exit to Factory (range 19) 12315 | -6/Cetus | Met Revision 17 12329 | -6/Cetus | Entered Archives 12329 | -6/Archives | Accompanied by 6 allies (A7) 12357 | -6/Archives | Discovered new exit (range 20) 12395 | -6/Archives | Discovered new exit (range 19) 12427 | -6/Archives | Entered Hub_04(d) 12427 | -6/Hub_04(d) | Accompanied by 5 allies 12439 | -6/Hub_04(d) | Spotted B-75 Beast 12451 | -6/Hub_04(d) | Destroyed B-75 Beast 12480 | -6/Hub_04(d) | Discovered exit to Factory (range 16) 12515 | -6/Hub_04(d) | Destroyed 13 combat bots 12515 | -6/Hub_04(d) | Reached level 23 12653 | -6/Hub_04(d) | Identified exit to Garrison 12680 | -6/Hub_04(d) | Discovered exit to Factory (range 12) 12699 | -6/Hub_04(d) | Discovered exit to Factory (range 12) 12772 | -6/Hub_04(d) | Network Hub disabled 12772 | -6/Hub_04(d) | Network Hub disabled 12774 | -6/Hub_04(d) | Spotted Lightning 12777 | -6/Hub_04(d) | First assault squad dispatched 12785 | -6/Hub_04(d) | Spotted Lightning 12787 | -6/Hub_04(d) | High security lockdown imminent 12795 | -6/Hub_04(d) | Destroyed Lightning 12797 | -6/Hub_04(d) | Destroyed Lightning 12812 | -6/Hub_04(d) | Spotted Lightning 12815 | -6/Hub_04(d) | Network Hub disabled 12815 | -6/Hub_04(d) | Network Hub disabled 12817 | -6/Hub_04(d) | Destroyed Lightning 12836 | -6/Hub_04(d) | Spotted Lightning 12836 | -6/Hub_04(d) | Spotted Lightning 12838 | -6/Hub_04(d) | Spotted Lightning 12842 | -6/Hub_04(d) | Destroyed Lightning 12842 | -6/Hub_04(d) | Destroyed Lightning 12850 | -6/Hub_04(d) | Destroyed Lightning 12867 | -6/Hub_04(d) | High security lockdown engaged 12888 | -6/Hub_04(d) | Destroyed 16 combat bots 12917 | -6/Hub_04(d) | Entered Factory 12917 | -5/Factory | Accompanied by 1 ally 12927 | -5/Factory | Sucked down chute 12927 | -5/Factory | Entered Waste 12928 | -5/Waste | Joined by Warlord forces that had cleared the area 12942 | -5/Waste | 1 allies followed down the chute 12963 | -5/Waste | Discovered new exit (range 19) 13114 | -5/Waste | Entered Factory 13114 | -5/Factory | Accompanied by 21 allies 13171 | -5/Factory | Reached level 24 13174 | -5/Factory | Upgraded with Utility slot (x1) 13218 | -5/Factory | Destroyed 13 combat bots 13223 | -5/Factory | Identified exit to Upper Caves 13276 | -5/Factory | Lost 4 allies 13321 | -5/Factory | Discovered new exit (range 19) 13350 | -5/Factory | Unchained authorized (QV-33N) 13360 | -5/Factory | Spotted B-75 Beast 13370 | -5/Factory | Allies destroyed B-75 Beast 13391 | -5/Factory | Lost 3 allies 13482 | -5/Factory | Discovered new exit (range 12) 13591 | -5/Factory | Destroyed QV-33N 13596 | -5/Factory | Found Prototype Hover Unit 13596 | -5/Factory | Identified Hoverbase 13598 | -5/Factory | Attached Hoverbase, gained temporary slots: Utility x4 13631 | -5/Factory | Found ID Mask 13631 | -5/Factory | ID Mask engaged 13676 | -5/Factory | ID Mask no longer valid 13696 | -5/Factory | Garrison activated, responded to threat 13718 | -5/Factory | Reached level 25 13718 | -5/Factory | High security lockdown imminent 13798 | -5/Factory | High security lockdown engaged 14108 | -5/Factory | Destroyed 12 combat bots 14216 | -5/Factory | Destroyed 22 combat bots 14287 | -5/Factory | Destroyed 12 combat bots 14596 | -5/Factory | Destroyed 22 combat bots 14684 | -5/Factory | Sterilization system engaged 14684 | -5/Factory | Non-combat units ordered to evacuate 14735 | -5/Factory | Destroyed 11 combat bots 14784 | -5/Factory | Combat units ordered to evacuate 14984 | -5/Factory | Ambient heat levels rising (+10) 14990 | -5/Factory | Entered Upper Caves 14992 | -5/Upper Caves | Reached level 26 15008 | -5/Upper Caves | Upgraded with Propulsion slot (x1) 15010 | -5/Upper Caves | Entered a destroyed Warlord outpost 15095 | -5/Upper Caves | Ambushed by wild Derelicts 15162 | -5/Upper Caves | Attracted the attention of an 0b10 checkpoint 15193 | -5/Upper Caves | Identified exit to Upper Caves 15216 | -5/Upper Caves | Attracted the attention of an 0b10 outpost 15242 | -5/Upper Caves | Destroyed 7 combat bots 15554 | -5/Upper Caves | Entered another Upper Caves area 15554 | -5/Upper Caves | Accompanied by 2 allies 15556 | -5/Upper Caves | Attracted the attention of an 0b10 outpost 15645 | -5/Upper Caves | Spotted B-75 Beast 15646 | -5/Upper Caves | Learned 4 Factory zone layouts 15657 | -5/Upper Caves | Destroyed B-75 Beast 15752 | -5/Upper Caves | Discovered new exit (range 18) 15760 | -5/Upper Caves | Attracted the attention of an 0b10 checkpoint 15931 | -5/Upper Caves | Discovered new exit (range 15) 16256 | -5/Upper Caves | Entered Warlord 16256 | -5/Warlord | Accompanied by 3 allies 16274 | -5/Warlord | System corruption cleaned by Quarantine Array 16477 | -5/Warlord | Met Warlord 16502 | -5/Warlord | Warlord's base attacked by MAIN.C 16700 | -5/Warlord | Destroyed 21 combat bots 16760 | -5/Warlord | Destroyed 14 combat bots 16764 | -5/Warlord | Warlord forces counterattacked 16804 | -5/Warlord | Spotted Striker 16804 | -5/Warlord | Spotted Striker 16812 | -5/Warlord | Spotted Executioner 16814 | -5/Warlord | Destroyed Striker 16819 | -5/Warlord | Destroyed Striker 16840 | -5/Warlord | Destroyed Executioner 16882 | -5/Warlord | Destroyed 13 combat bots 16885 | -5/Warlord | Lost 9 allies 16902 | -5/Warlord | P-80 Master assimilated allied WX-1XB(l) 16908 | -5/Warlord | Spotted Executioner 16908 | -5/Warlord | Spotted Striker 16911 | -5/Warlord | Destroyed Striker 16928 | -5/Warlord | Destroyed Executioner 16930 | -5/Warlord | Discovered new exit (range 19) 16960 | -5/Warlord | Lost 8 allies 17002 | -5/Warlord | Spotted Executioner 17019 | -5/Warlord | Destroyed Executioner 17050 | -5/Warlord | Lost 9 allies 17102 | -5/Warlord | Spotted Striker 17143 | -5/Warlord | Lost 4 allies 17177 | -5/Warlord | Warlord base infiltrated, sounded retreat 17202 | -5/Warlord | Spotted Executioner 17237 | -5/Warlord | Destroyed 9 combat bots 17244 | -5/Warlord | Lost 8 allies 17302 | -5/Warlord | Spotted Executioner 17302 | -5/Warlord | Spotted Executioner 17334 | -5/Warlord | Destroyed Executioner 17347 | -5/Warlord | Destroyed Executioner 17367 | -5/Warlord | Spotted Executioner 17368 | -5/Warlord | Destroyed 9 combat bots 17390 | -5/Warlord | Destroyed Executioner 17391 | -5/Warlord | Spotted Striker 17410 | -5/Warlord | Destroyed Striker 17455 | -5/Warlord | Destroyed 14 combat bots 17481 | -5/Warlord | Ran a hallucination algorithm 17511 | -5/Warlord | Spotted Executioner 17513 | -5/Warlord | Destroyed Executioner 17540 | -5/Warlord | Destroyed 11 combat bots 17590 | -5/Warlord | Spotted Executioner 17592 | -5/Warlord | Destroyed Executioner 17592 | -5/Warlord | Reached level 27 17709 | -5/Warlord | Spotted Striker 17716 | -5/Warlord | Destroyed 31 combat bots 17728 | -5/Warlord | Destroyed Striker 17762 | -5/Warlord | Spotted Executioner 17781 | -5/Warlord | Spotted Striker 17803 | -5/Warlord | Destroyed 10 combat bots 17806 | -5/Warlord | Destroyed Striker 17814 | -5/Warlord | Destroyed Executioner 17848 | -5/Warlord | Destroyed 9 combat bots 17858 | -5/Warlord | Spotted Striker 17867 | -5/Warlord | Destroyed Striker 17900 | -5/Warlord | Spotted Striker 17913 | -5/Warlord | Destroyed Striker 17971 | -5/Warlord | Spotted Executioner 17980 | -5/Warlord | Destroyed Executioner 18003 | -5/Warlord | Spotted Executioner 18024 | -5/Warlord | Destroyed Executioner 18050 | -5/Warlord | Destroyed 35 combat bots 18052 | -5/Warlord | Spotted Striker 18054 | -5/Warlord | Destroyed Striker 18079 | -5/Warlord | Spotted Executioner 18085 | -5/Warlord | Spotted Striker 18092 | -5/Warlord | Destroyed Striker 18096 | -5/Warlord | Destroyed Executioner 18122 | -5/Warlord | Spotted Striker 18138 | -5/Warlord | Destroyed Striker 18167 | -5/Warlord | Destroyed 31 combat bots 18212 | -5/Warlord | Spotted Striker 18216 | -5/Warlord | Destroyed Striker 18330 | -5/Warlord | Spotted Striker 18365 | -5/Warlord | Destroyed Striker 18496 | -5/Warlord | Spotted Executioner 18521 | -5/Warlord | Destroyed Executioner 18592 | -5/Warlord | Found Prototype Device 18592 | -5/Warlord | Identified Exp. Phase Shifter 18600 | -5/Warlord | Found Prototype Reactor 18600 | -5/Warlord | Identified Vortex Chain Reactor 18606 | -5/Warlord | Found Prototype Hackware 18606 | -5/Warlord | Identified Ghost Barrier 18703 | -5/Warlord | Found Prototype Launcher 18703 | -5/Warlord | Identified Vortex Catalyst Activator 18705 | -5/Warlord | Found Prototype Energy Gun 18705 | -5/Warlord | Identified Vortex Rail 18708 | -5/Warlord | Found Prototype Piercing Weapon 18708 | -5/Warlord | Identified Vortex Lance 18802 | -5/Warlord | Found Prototype Processor 18802 | -5/Warlord | Identified Exp. Core Analyzer 18846 | -5/Warlord | Entered Proximity Caves 18881 | -4/Proximity Caves | Build established: Hacker-Tank 18903 | -4/Proximity Caves | Learned location of Testing (-3) 18951 | -4/Proximity Caves | Found DCF Scrap (14 items) 19024 | -4/Proximity Caves | Discovered new exit (range 15) 19141 | -4/Proximity Caves | Spotted B-86 Titan 19150 | -4/Proximity Caves | Destroyed B-86 Titan 19364 | -4/Proximity Caves | Entered Factory 19462 | -4/Factory | Discovered new exit (range 4) 19497 | -4/Factory | Identified exit to Upper Caves 19497 | -4/Factory | Identified exit to Armory 19535 | -4/Factory | Unchained authorized (GL-D0S) 19669 | -4/Factory | Garrison activated, responded to threat 19768 | -4/Factory | Garrison activated, responded to threat 19803 | -4/Factory | Reached level 28 19827 | -4/Factory | Sucked down chute 19827 | -4/Factory | Entered Waste 19833 | -4/Waste | Spotted C-40 Crusher 19840 | -4/Waste | Spotted C-40 Crusher 19842 | -4/Waste | EMP discharged 19844 | -4/Waste | Spotted C-40 Crusher 19846 | -4/Waste | Destroyed C-40 Crusher 19848 | -4/Waste | Spotted C-40 Crusher 19856 | -4/Waste | Destroyed C-40 Crusher 19860 | -4/Waste | Destroyed C-40 Crusher 19864 | -4/Waste | Destroyed C-40 Crusher 19918 | -4/Waste | Spotted C-40 Crusher 19920 | -4/Waste | Spotted C-40 Crusher 19922 | -4/Waste | Destroyed C-40 Crusher 19933 | -4/Waste | Destroyed C-40 Crusher 19942 | -4/Waste | EMP discharged 19942 | -4/Waste | Discovered new exit (range 12) 19956 | -4/Waste | Entered Factory 20130 | -4/Factory | Unchained authorized (GL-D0S) 20224 | -4/Factory | Destroyed 9 combat bots 20318 | -4/Factory | Garrison activated, responded to threat 20399 | -4/Factory | Discovered new exit (range 12) 20706 | -4/Factory | First assault squad dispatched 20823 | -4/Factory | Garrison activated, responded to threat 20839 | -4/Factory | Spotted B-86 Titan 20972 | -4/Factory | High security lockdown imminent 20997 | -4/Factory | Identified exit to Research 21005 | -4/Factory | Destroyed 7 combat bots 21024 | -4/Factory | Discovered exit to Upper Caves (range 6) 21052 | -4/Factory | High security lockdown engaged 21076 | -4/Factory | Entered Upper Caves 21204 | -4/Upper Caves | Attracted the attention of an 0b10 outpost 21256 | -4/Upper Caves | Discovered new exit (range 17) 21278 | -4/Upper Caves | Destroyed 9 combat bots 21398 | -4/Upper Caves | Learned location of 1 exit from Upper Caves 21475 | -4/Upper Caves | Attracted the attention of an 0b10 checkpoint 21756 | -4/Upper Caves | Entered another Upper Caves area 21756 | -4/Upper Caves | Accompanied by 2 allies 21757 | -4/Upper Caves | Identified exit to Zhirov 21760 | -4/Upper Caves | Discovered exit to Research (range 14) 21768 | -4/Upper Caves | Learned Research non-interactive machine intel 21782 | -4/Upper Caves | Attracted the attention of an 0b10 checkpoint 21794 | -4/Upper Caves | Reached level 29 21825 | -4/Upper Caves | Destroyed 7 combat bots 21899 | -4/Upper Caves | Spotted B-86 Titan 21918 | -4/Upper Caves | Destroyed B-86 Titan 22014 | -4/Upper Caves | Learned Research garrison access intel 22014 | -4/Upper Caves | Learned Research emergency access door positions 22014 | -4/Upper Caves | Learned Factory trap positions 22023 | -4/Upper Caves | Destroyed 14 combat bots 22120 | -4/Upper Caves | Ambushed by research squad 22475 | -4/Upper Caves | Entered Zhirov 22475 | -4/Zhirov | Accompanied by 1 ally 22475 | -4/Zhirov | Discovered new exit (range 3) 22485 | -4/Zhirov | Met Zhirov 22496 | -4/Zhirov | Learned location of Command (-1) 22500 | -4/Zhirov | Zhirov requested help retrieving the SGEMP Prototype 22516 | -4/Zhirov | Found Alien Artifact 22516 | -4/Zhirov | Identified Integrated Reactor 22516 | -4/Zhirov | Installed Integrated Reactor, increased core energy generation (+10) 22525 | -4/Zhirov | Cloak Generator disabled 22525 | -4/Zhirov | Attacked by Zhirov 22535 | -4/Zhirov | Enhanced Grunts warped into view 22559 | -4/Zhirov | Found Zhirov Special 22563 | -4/Zhirov | Zhirov detonated his lab 22594 | -4/Zhirov | Lost 9 allies 22642 | -4/Zhirov | Entered Proximity Caves 22799 | -3/Proximity Caves | Destroyed 7 combat bots 22829 | -3/Proximity Caves | Build established: Scavenger-Tank 23093 | -3/Proximity Caves | Discovered exit to Research (range 9) 23139 | -3/Proximity Caves | Entered Research 23139 | -3/Research | Accompanied by 2 allies 23140 | -3/Research | Identified exit to Testing 23142 | -3/Research | Loaded intel: 77 non-interactive machine locations 23143 | -3/Research | Loaded intel: 4 garrison access locations 23161 | -3/Research | Discovered new exit (range 4) 23182 | -3/Research | Identified exit to Research 23182 | -3/Research | Reached level 30 23339 | -3/Research | Revision forces began assault on 0b10 23382 | -3/Research | Spotted B-86 Titan 23391 | -3/Research | Destroyed B-86 Titan 23404 | -3/Research | Met up with Revision 17++ 23580 | -3/Research | Spotted B-86 Titan 23601 | -3/Research | Destroyed B-86 Titan 23709 | -3/Research | Destroyed 7 combat bots 23839 | -3/Research | Research terminal network offline 24036 | -3/Research | Entered Testing 24050 | -3/Testing | Protovariant out of control (PD-MC1ZPNZ6DZ) 24050 | -3/Testing | Unleashed a protovariant (PD-MC1ZPNZ6DZ) 24079 | -3/Testing | Found Prototype Device 24079 | -3/Testing | Identified Exp. EM Disruption Field 24197 | -3/Testing | Found Prototype Energy Cannon 24197 | -3/Testing | Identified Disintegrator 24477 | -3/Testing | Discovered exit to Research (range 15) 24536 | -3/Testing | First assault squad dispatched 24814 | -3/Testing | Reached level 31 24860 | -3/Testing | Found Prototype Energy Gun 24860 | -3/Testing | Identified Warp Gun 24984 | -3/Testing | Found Prototype Device 24984 | -3/Testing | Identified 2N-1CE's Frost Array 25087 | -3/Testing | Found Prototype Device 25087 | -3/Testing | Identified Exp. Thermal Shield 25198 | -3/Testing | Found Prototype Processor 25198 | -3/Testing | Identified Exp. Targeting Computer 25238 | -3/Testing | Spotted Striker 25245 | -3/Testing | Found Prototype Ballistic Gun 25245 | -3/Testing | Identified Hyp. Multirail 25260 | -3/Testing | Destroyed Striker 25262 | -3/Testing | Spotted Alpha 7 25279 | -3/Testing | Destroyed Alpha 7 25286 | -3/Testing | Found Prototype Device 25286 | -3/Testing | Identified Exp. ECM Suite 25366 | -3/Testing | Entered Research 25366 | -2/Research | Warlord forces began assault on 0b10 25397 | -2/Research | Spotted B-90 Cyclops 25415 | -2/Research | Identified exit to Quarantine 25476 | -2/Research | Research machine network offline 25489 | -2/Research | Destroyed B-90 Cyclops 25658 | -2/Research | Reached level 32 25666 | -2/Research | Discovered new exit (range 19) 25727 | -2/Research | Spotted B-90 Cyclops 25731 | -2/Research | Destroyed B-90 Cyclops 25736 | -2/Research | Spotted Executioner 25740 | -2/Research | Spotted Executioner 25740 | -2/Research | Destroyed Executioner 25751 | -2/Research | Destroyed Executioner 25772 | -2/Research | Met up with Warlord 25782 | -2/Research | Discovered new exit (range 9) 25795 | -2/Research | Spotted Striker 25805 | -2/Research | Destroyed Striker 25832 | -2/Research | Lost 6 allies 25847 | -2/Research | Spotted Striker 25850 | -2/Research | Destroyed Striker 25910 | -2/Research | Spotted Striker 25917 | -2/Research | Destroyed Striker 25952 | -2/Research | Destroyed 7 combat bots 25987 | -2/Research | Spotted Striker 25992 | -2/Research | Destroyed Striker 26048 | -2/Research | Destroyed 10 combat bots 26067 | -2/Research | Borebot progress halted 26111 | -2/Research | Spotted Striker 26156 | -2/Research | Entered Quarantine 26158 | -2/Quarantine | Reached level 33 26290 | -2/Quarantine | Destroyed 8 combat bots 26383 | -2/Quarantine | Scanned by Researcher 26406 | -2/Quarantine | First assault squad dispatched 26437 | -2/Quarantine | Spotted Fortress 26449 | -2/Quarantine | Destroyed Fortress 26455 | -2/Quarantine | Found Prototype Device 26455 | -2/Quarantine | Identified Exp. Force Field 26502 | -2/Quarantine | Discovered new exit (range 5) 26502 | -2/Quarantine | Discovered new exit (range 6) 26504 | -2/Quarantine | Entered Protoforge 26526 | -2/Protoforge | Superfortress began startup sequence 26597 | -2/Protoforge | Discovered new exit (range 17) 26599 | -2/Protoforge | Spotted Hotshot 26606 | -2/Protoforge | Destroyed 14 combat bots 27004 | -2/Protoforge | First assault squad dispatched 27039 | -2/Protoforge | Spotted Hotshot 27043 | -2/Protoforge | Spotted Hotshot 27043 | -2/Protoforge | Destroyed Hotshot 27043 | -2/Protoforge | Reached level 34 27043 | -2/Protoforge | Destroyed Hotshot 27045 | -2/Protoforge | Spotted Hotshot 27046 | -2/Protoforge | Destroyed Hotshot 27067 | -2/Protoforge | Destroyed 8 combat bots 27079 | -2/Protoforge | Destroyed Hotshot 27397 | -2/Protoforge | Forge Plexus network access discovered 27415 | -2/Protoforge | Spotted Decapitator 27416 | -2/Protoforge | Spotted Decapitator 27417 | -2/Protoforge | Spotted Decapitator 27420 | -2/Protoforge | Destroyed Decapitator 27451 | -2/Protoforge | Destroyed 7 combat bots 27473 | -2/Protoforge | Found Cep. Weapon Articulator 27539 | -2/Protoforge | Spotted Immortal 27539 | -2/Protoforge | Spotted Immortal 27539 | -2/Protoforge | Spotted Immortal 27539 | -2/Protoforge | Spotted Decapitator 27539 | -2/Protoforge | Spotted Decapitator 27584 | -2/Protoforge | Destroyed Decapitator 27587 | -2/Protoforge | Destroyed Decapitator 27590 | -2/Protoforge | Destroyed Immortal 27602 | -2/Protoforge | Destroyed Immortal 27605 | -2/Protoforge | Destroyed Immortal 27624 | -2/Protoforge | Spotted Immortal 27624 | -2/Protoforge | Spotted Immortal 27629 | -2/Protoforge | Destroyed 7 combat bots 27648 | -2/Protoforge | Found Exp. Terror Saw 27651 | -2/Protoforge | Found Exp. Jetlance 27675 | -2/Protoforge | Found Cep. Energy Mantle 27685 | -2/Protoforge | Spotted V507-s 27685 | -2/Protoforge | Found Cep. Beam Splitter 27691 | -2/Protoforge | Destroyed V507-s 27712 | -2/Protoforge | Found Prototype Ballistic Gun 27712 | -2/Protoforge | Identified Multirail 27719 | -2/Protoforge | Found Exp. Target Analyzer 27759 | -2/Protoforge | Build established: Scavenger-Gunner 27763 | -2/Protoforge | Spotted Decapitator 27763 | -2/Protoforge | Spotted Decapitator 27763 | -2/Protoforge | Spotted V389-i 27763 | -2/Protoforge | Spotted V141-s 27763 | -2/Protoforge | Spotted Decapitator 27800 | -2/Protoforge | Spotted Hotshot 27800 | -2/Protoforge | Spotted Hotshot 27800 | -2/Protoforge | Spotted Hotshot 27800 | -2/Protoforge | Spotted Hotshot 27802 | -2/Protoforge | Destroyed Hotshot 27802 | -2/Protoforge | Destroyed Hotshot 27805 | -2/Protoforge | Destroyed Hotshot 27814 | -2/Protoforge | Destroyed Hotshot 27841 | -2/Protoforge | Spotted Decapitator 27841 | -2/Protoforge | Spotted Decapitator 27841 | -2/Protoforge | Spotted Decapitator 27928 | -2/Protoforge | Spotted AP7-3 27928 | -2/Protoforge | Spotted AP7-3 28019 | -2/Protoforge | Found Cep. Dimensional Manipulator 28023 | -2/Protoforge | Destroyed AP7-3 28025 | -2/Protoforge | Destroyed AP7-3 28030 | -2/Protoforge | Found Prototype Device 28030 | -2/Protoforge | Identified Exp. ECM Suite 28161 | -2/Protoforge | Destroyed 26 combat bots 28179 | -2/Protoforge | Spotted Immortal 28179 | -2/Protoforge | Spotted Immortal 28183 | -2/Protoforge | Destroyed Immortal 28191 | -2/Protoforge | Destroyed Immortal 28193 | -2/Protoforge | Spotted V147-b 28197 | -2/Protoforge | Spotted V947-i 28201 | -2/Protoforge | Destroyed V947-i 28323 | -2/Protoforge | Spotted Striker 28349 | -2/Protoforge | Destroyed Striker 28409 | -2/Protoforge | Spotted EXE-6 28409 | -2/Protoforge | Spotted EXE-6 28417 | -2/Protoforge | Destroyed EXE-6 28423 | -2/Protoforge | Destroyed EXE-6 28485 | -2/Protoforge | Spotted Overlord 28602 | -2/Protoforge | Spotted Decapitator 28602 | -2/Protoforge | Spotted Decapitator 28602 | -2/Protoforge | Spotted Decapitator 28611 | -2/Protoforge | Destroyed Overlord 28615 | -2/Protoforge | Spotted Decapitator 28730 | -2/Protoforge | Reached level 35 28818 | -2/Protoforge | Spotted Decapitator 28818 | -2/Protoforge | Spotted Decapitator 28885 | -2/Protoforge | Destroyed 8 combat bots 28959 | -2/Protoforge | Destroyed 15 combat bots 29004 | -2/Protoforge | Destroyed Decapitator 29005 | -2/Protoforge | Destroyed Decapitator 29053 | -2/Protoforge | Spotted EXE-6 29059 | -2/Protoforge | Spotted EXE-6 29067 | -2/Protoforge | Destroyed EXE-6 29067 | -2/Protoforge | Destroyed EXE-6 29076 | -2/Protoforge | Found Prototype Processor 29076 | -2/Protoforge | Identified Exp. Armor Integrity Analyzer 29094 | -2/Protoforge | Spotted Hotshot 29094 | -2/Protoforge | Spotted AP7-3 29094 | -2/Protoforge | Spotted Hotshot 29096 | -2/Protoforge | Spotted AP7-3 29101 | -2/Protoforge | Spotted Hotshot 29105 | -2/Protoforge | Spotted Hotshot 29187 | -2/Protoforge | Destroyed AP7-3 29187 | -2/Protoforge | Destroyed Hotshot 29196 | -2/Protoforge | Destroyed Hotshot 29214 | -2/Protoforge | Destroyed Hotshot 29217 | -2/Protoforge | Destroyed Hotshot 29224 | -2/Protoforge | Destroyed AP7-3 29242 | -2/Protoforge | Found Prototype Device 29242 | -2/Protoforge | Identified Exp. Weapon Cycler 29245 | -2/Protoforge | Destroyed 11 combat bots 29246 | -2/Protoforge | Found Prototype Device 29246 | -2/Protoforge | Identified Exp. Transmission Jammer 29251 | -2/Protoforge | Found Prototype Protection 29251 | -2/Protoforge | Identified Centrium Heavy Armor Plating 29367 | -2/Protoforge | Spotted Hotshot 29368 | -2/Protoforge | Destroyed Hotshot 29373 | -2/Protoforge | Spotted Hotshot 29423 | -2/Protoforge | Destroyed Hotshot 29424 | -2/Protoforge | Spotted Hotshot 29426 | -2/Protoforge | Spotted Hotshot 29429 | -2/Protoforge | Destroyed Hotshot 29429 | -2/Protoforge | Destroyed Hotshot 29436 | -2/Protoforge | Spotted Hotshot 29436 | -2/Protoforge | Spotted Hotshot 29527 | -2/Protoforge | Spotted B-90 Cyclops 29531 | -2/Protoforge | Destroyed B-90 Cyclops 29731 | -2/Protoforge | Destroyed 17 combat bots 29749 | -2/Protoforge | Destroyed Decapitator 29830 | -2/Protoforge | Entered Access 29921 | -1/Access | Reached level 36 29936 | -1/Access | High security lockdown imminent 29974 | -1/Access | Destroyed 12 combat bots 30016 | -1/Access | High security lockdown engaged 30117 | -1/Access | Destroyed 20 combat bots 30249 | -1/Access | Destroyed 18 combat bots 30265 | -1/Access | Spotted Investigator 30289 | -1/Access | Destroyed Investigator 30322 | -1/Access | Reached level 37 30405 | -1/Access | Spotted Executioner 30405 | -1/Access | Spotted Executioner 30408 | -1/Access | Destroyed Executioner 30456 | -1/Access | Destroyed Executioner 30492 | -1/Access | Destroyed 43 combat bots 30525 | -1/Access | Garrison activated, responded to threat 30559 | -1/Access | Destroyed 7 combat bots 30723 | -1/Access | Spotted B-99 Colossus 30780 | -1/Access | Spotted Striker 30780 | -1/Access | Spotted Executioner 30782 | -1/Access | Spotted Striker 30783 | -1/Access | Spotted Executioner 30810 | -1/Access | Destroyed Striker 30813 | -1/Access | Destroyed Striker 30822 | -1/Access | Spotted Striker 30822 | -1/Access | Spotted Striker 30828 | -1/Access | Destroyed Executioner 30828 | -1/Access | Destroyed Executioner 30836 | -1/Access | Destroyed Striker 30839 | -1/Access | Destroyed Striker 30849 | -1/Access | Sterilization system engaged 30872 | -1/Access | Destroyed 17 combat bots 30893 | -1/Access | Spotted Executioner 30893 | -1/Access | Spotted Striker 30898 | -1/Access | Destroyed Executioner 30898 | -1/Access | Destroyed Striker 30917 | -1/Access | Destroyed Striker 30940 | -1/Access | Spotted Striker 30944 | -1/Access | Destroyed Striker 30945 | -1/Access | Spotted Executioner 30945 | -1/Access | Destroyed Executioner 30948 | -1/Access | Destroyed Striker 30948 | -1/Access | Destroyed Striker 30950 | -1/Access | Spotted Striker 30951 | -1/Access | Destroyed Striker 31022 | -1/Access | Spotted Striker 31022 | -1/Access | Spotted Striker 31027 | -1/Access | Destroyed Striker 31035 | -1/Access | Destroyed Striker 31056 | -1/Access | Destroyed 40 combat bots 31062 | -1/Access | Reached level 38 31064 | -1/Access | Spotted Striker 31068 | -1/Access | Destroyed Striker 31073 | -1/Access | Spotted Striker 31073 | -1/Access | Spotted Striker 31078 | -1/Access | Destroyed Striker 31080 | -1/Access | Destroyed Striker 31088 | -1/Access | Spotted Striker 31089 | -1/Access | Destroyed Striker 31122 | -1/Access | Destroyed 26 combat bots 31149 | -1/Access | Ambient heat levels rising (+10) 31155 | -1/Access | Spotted B-99 Colossus 31247 | -1/Access | Destroyed B-99 Colossus 31256 | -1/Access | Destroyed B-99 Colossus 31299 | -1/Access | Ambient heat levels rising (+10) 31311 | -1/Access | Discovered new exit (range 5) 31317 | *** | Escaped! Last Messages --------------- 31260_ U-05 Engineer destroyed. 31260_ HV Slug penetrates Wall. 31266_ Acquired Protomatter-77. 31277_ Acquired Prototype Impact Weapon. 31277_ Identified Gravity Flail. 31277_ Faulty integration triggers heat surge (+278). 31279_ Dropped Faulty Gravity Flail. 31280_ Acquired Gravity Flail. Adv. Coolant Injector melts. Adv. Cooling System melts. Machine Analyzer melts. 31298_ Sealed Heavy Doors breached. 31299_ ALERT: Ambient heat levels +10. 31309_ System corrupted: FCS attempts to trigger 8R-AWN's Boregun. 31309_ System corrupted: 8R-AWN's Boregun misfires. 31311_ Main Access Shell breached. 31311_ EXIT=FOUND Map ----- +----------------------------------------------------+ | ?????????????????????????????????????????# | | ?????????????????????????????????????????# | | ?????????????????????????????????????????### % ## | | ???????????????????????????????????????????# # | | ??????????????????????????????###########??# | | ??????????????????????????????# ??# % % | | ??????????????????????????????# ! ?# | | ??????????????????????????????# ?# | | ??????????????????????????????# # | | ??????????????????????????????# #% | | ??????????????????????????????# # % | | ??????????????????????????????# # | | ??????????????????????????????# + # | | ??????????????????????????????# # ## | | ??????????????????????????????# # ## | | ??????????????????????????????# !# %!=## | | ??????????????????????????????# # %!%[ | | ??????????????????????????????##############%![! | | ??????????????????????????????????????????##*/[ % | | ??????????????????????????#####??#########?# % | | ??????????????????????????? "??"!!! #?# ## | | ???????????????????????????? "??" ! #?# #? | | ???????????????????????"""""" "??"!! ### ## | | ???????????????????????" " """" %%% | | ???????????????????????" "" %=! | | ???????????????????????" @" " """" ! | | ???????????????????????" " "??"[!! % | | ???????????????????????"""""" "??"!%!! ### #### | | ???????????????????????????? "??" !! # | | ???????????????????????????? "??" ! # | | ????????????????????????????###??######### | | ?????????????????????????????????????????# | | ?????????????????????????????????????????# | | ?????????????????????????????????????????# | | ?????????????????????????????????????????# | | ?????????????????????????????????????????# | | ?????????????????????????????????????????# | | ?????????????????????????????????????????# "" | | ?????????????????????????????????????????+ "R | | ?????????????????????????????????????????# ["" | | ?????????????????????????????????????????########? | | ????????????H????????????????????????????????????? | | ?????????????????????????????????????????????????? | | ?????????????????????????????????????????????????? | | ?????????????????????????????????????????????????? | | ?????????????????????????????????????????????????? | | ??????????????????????????????????????????????#### | | ????????????????????????????????????? | | ????????????????????????????????????? | | ????????????????????????????????????? % | +----------------------------------------------------+ Best States ------------- Heat Dissipation 215 Energy Generation 90 Energy Capacity 1150 Matter Stores 500 Matter Capacity 500 Sight Range 20 Robot Scan Range 20 Terrain Scan Range 18 Terrain Scan Density 10 Power Amplification 20 Additional Mass Support 30 Armor Coverage 2050 Resistance: KI 25 Resistance: TH 75 Resistance: EM 90 Weapon Cycling 25 Phase Shifting 20 Evasion (%) 74 Targeting Accuracy 30 Target Analysis 10 Armor Integrity Analysis 50 Particle Charging 30 Kinecelleration 30 Offensive Hacking 15 Defensive Hacking 30 Item Schematics ----------------- Cmb. Antigrav System | -7/Factory | Scanalyzed Triangulator | -6/Factory | Hacked Adv. Weapon Cycler | -4/Factory | Scanalyzed Assault Drone Bay | -4/Zhirov | Free Imp. Arc Thrower | -4/Zhirov | Free Exp. Optical Array | -4/Zhirov | Free Exp. Heat Sink | -4/Zhirov | Free Adv. Heavy Siege Treads | -3/Research | Hacked Exp. Myomer Leg | -2/Quarantine | Archive Enh. Armored Heavy Treads | -2/Quarantine | Archive Exp. Coolant Injector | -2/Quarantine | Archive Exp. Gyrokinetic Inverter | -2/Quarantine | Archive Exp. Flexi-carbon Leg | -2/Protoforge | Archive Hvy. Dispersion Rifle | -2/Protoforge | Archive Shock Maul | -2/Protoforge | Archive Cld. Antigrav System | -2/Protoforge | Archive Enh. Biometal Leg | -2/Protoforge | Archive Adv. Energy Well | -2/Protoforge | Archive Com. Linear Accelerator | -2/Protoforge | Archive Diametric Drive | -2/Protoforge | Archive Robot Schematics ------------------ A-02 Transporter | -2/Quarantine | Archive A-27 Freighter | -2/Protoforge | Archive R-10 Processor | -2/Protoforge | Archive K-01 Serf | -2/Protoforge | Archive Fabricated ------------ Triangulator | x2 | -6/Factory Repaired ---------- Nothing Studied --------- None Alien Tech Used ----------------- Integrated Reactor Achievements -------------- None Challenges ------------ None RPGLIKE | -11 -10 -10 -10 -9 -8 -7 -7 -7 -7 -7 -7 -7 -6 -6 -6 -6 -6 -6 -5 -5 -5 -5 -5 -5 -4 -4 -4 -4 -4 -4 -4 -3 -3 -3 -2 -2 -2 -1 --------- Run | Yrd Mat Min Exi Min Mat Fac Was Fac Low Low Zio Dee Pro Fac Ext Cet Arc Hub Fac Was Fac Upp Upp War Pro Fac Was Fac Upp Upp Zhi Pro Res Tes Res Qua Frg Acc Levels Raised 37 | . 3 1 . 1 6 3 . 4 . . . . 1 1 1 . . 1 . . 2 1 . 1 . 1 . . . 1 . . 1 1 1 1 2 3 XP Earned 58774 | 3000 5514 1326 243 1175 9119 3822 97 5965 153 120 57 173 856 2458 1032 222 160 1170 359 46 3428 150 140 1897 229 650 22 1019 276 274 50 720 1348 876 2805 707 3153 3963 XP Spent 58450 | 2960 4540 800 700 1300 9150 4400 150 5850 . . . 150 . 1360 3000 . . . . . 3100 1700 . 1135 . . . 3200 . 1275 . . 1300 1000 2200 . 3025 6155 Upgrades 103 | 10 7 1 10 2 11 7 1 9 . . . 1 . 4 3 . . . . . 2 1 . 5 . . . 5 . 3 . . 2 1 5 . 4 9 Power Slot 1 | . . . . . 1 . . . . . . . . . . . . . . . . . . . . . . . . . . . . . . . . . Propulsion Slot 5 | 1 2 . . . . . . 1 . . . . . . . . . . . . . 1 . . . . . . . . . . . . . . . . Utility Slot 8 | 1 2 . . . 3 . . . . . . . . . 1 . . . . . 1 . . . . . . . . . . . . . . . . . Weapon Slot 4 | 1 . 1 . . . . . 2 . . . . . . . . . . . . . . . . . . . . . . . . . . . . . . Core Integrity 10 | . . . 10 . . . . . . . . . . . . . . . . . . . . . . . . . . . . . . . . . . . Heat Dissipation 15 | 3 2 . . . 1 . . 4 . . . . . 3 . . . . . . . . . 1 . . . . . . . . . . . . . 1 Energy Generation 5 | . . . . . . 1 . . . . . . . 1 . . . . . . . . . . . . . . . 1 . . . . . . 2 . Energy Storage 9 | . . . . . . . . . . . . . . . . . . . . . . . . 2 . . . . . 1 . . . . 2 . 2 2 Matter Storage 4 | . . . . . . . . . . . . . . . . . . . . . . . . 1 . . . . . 1 . . . . 2 . . . Mass Support 3 | 1 . . . . 2 . . . . . . . . . . . . . . . . . . . . . . . . . . . . . . . . . Inventory Capacity 5 | 2 . . . . . . . 1 . . . . . . . . . . . . . . . . . . . . . . . . . 1 . . . 1 Sight Range 4 | . . . . . 3 1 . . . . . . . . . . . . . . . . . . . . . . . . . . . . . . . . Ranged Accuracy 9 | 1 1 . . 2 1 3 . . . . . . . . . . . . . . . . . . . . . . . . . . . . . . . 1 Hack Attack % 3 | . . . . . . 1 . 1 . . . . . . . . . . . . . . . . . . . 1 . . . . . . . . . . Hack Defense % 2 | . . . . . . 1 . . . . . . . . . . . . . . 1 . . . . . . . . . . . . . . . . . KI Resistance % 4 | . . . . . . . 1 . . . . . . . 1 . . . . . . . . . . . . 2 . . . . . . . . . . TH Resistance % 4 | . . . . . . . . . . . . 1 . . 1 . . . . . . . . . . . . 2 . . . . . . . . . . KI Damage % 4 | . . . . . . . . . . . . . . . . . . . . . . . . . . . . . . . . . . . . . . 4 TH Damage % 4 | . . . . . . . . . . . . . . . . . . . . . . . . 1 . . . . . . . . 2 . 1 . . . Protomatter Created 30087 | . 477 76 94 29 1083 290 269 2372 182 116 . 552 258 1052 367 127 145 903 . . 2408 260 150 4003 151 208 166 1069 343 596 . 440 595 707 986 374 5267 3972 Integrity Restored 33462 | . 643 279 282 . 2213 357 126 2244 540 97 . 1359 573 2194 449 179 213 874 . 56 2748 139 164 3430 203 52 355 2188 395 564 145 818 785 918 1661 359 3665 2195 Core 17982 | . 461 169 282 . 1673 126 . 1583 62 4 . 452 411 948 374 93 129 303 . . 1342 30 71 1861 91 29 168 1079 247 299 145 415 448 505 923 164 1852 1243 Parts 15480 | . 182 110 . . 540 231 126 661 478 93 . 907 162 1246 75 86 84 571 . 56 1406 109 93 1569 112 23 187 1109 148 265 . 403 337 413 738 195 1813 952 Protomatter Decayed 14862 | . 169 26 . 29 249 74 89 1211 . . . 150 . 200 177 86 72 410 . 69 1293 87 186 1630 80 47 46 131 62 283 . 163 1771 348 1537 250 2506 1431 Game ------ Seed CoordinationAerolevLauncher Manual? 0 Play Time 06:53:57 Cumulative 463.2 hours Start 2025.11.24 @ 19:31:52 End 2025.12.04 @ 14:25:18 Sessions 21 Manual Loads 0 Difficulty Rogue Special Mode Winter2019/RPGLIKE Game No. 171 Rogue 17 Adventurer 154 Explorer 0 Win Type 0 Total 19 Types 4/3/3/3/2/1/0/1/1/1 Lore% 92 Gallery% 84 Achievement% 61 Wizard Run 0 Options --------- Layout 2 ASCII 0 Keyboard 0 Movement Numpad Keybinds 0 Fullscreen 2 Font 24/Smallcaps Map View 50x44 Zoom Use 0% Tactical HUD 1 Map Filters NONE Filters NONE Steam 1 RUN: 95ccaa00-629c-4372-8ee3-d10d2e678764